Cogmind - Beta 11.1 @@@ ROGUE MODE // 2022.06.22 @ 02:20:53 Player: Savant Result: Destroyed by S7 Guard with Long-range Phase Cannon Performance ------------- Evolutions (8) 4000 Regions Visited (28) 5600 Robots Destroyed (476) 2380 Value Destroyed (23654) 23654 Prototype IDs (134) 2680 Alien Tech Used (17) 3400 Bonus (27815) 27815 TOTAL SCORE: 69529 Bonus ------- Triggered Max Security 1000 High Alert Combat Kills 4477 Follower Combat Kills 3876 Network Hubs Disabled 400 Met Imprinter 300 Met Warlord at Base 500 MAIN.C Attacked Warlord 500 Warlord Defense Kills 2364 Built Enhanced Grunts 300 A7 Reached Mainframe 300 Found Hidden Lab 3000 Used Core Reset Matrix 3000 Met Warlord at Research 2000 Pursued by Intercept 2500 Met Sigix 2000 Activated Exoskeleton 3000 Friendly Fire -1702 Cogmind --------- Core Integrity 0/1450 Matter 27/300 Energy 700/700 System Corruption 0% Temperature Cool (9) Movement Core (800) Ox15 Location -2/Section 7 Parts ------- > --- POWER (2) -------- (None) > --- PROPULSION (6) --- (None) > --- UTILITY (12) ----- Experimental Coolant Injector High-capacity Storage Unit Experimental Energy Well Experimental Signal Interpreter Experimental Terrain Scan Processor Advanced Targeting Computer Experimental Targeting Computer Experimental Target Analyzer Experimental ECM Suite Spacefold Activator > --- WEAPON (3) ------- Plasma Lance > --- INVENTORY (24) --- Micro Antimatter Reactor Cooled Linear Gravjet Experimental Cooling System Experimental Optical Array Improved Armor Integrity Analyzer Experimental Force Field Integrity Redistributor Integrity Redistributor KE Penetrator Helical Railgun Helical Railgun Peak State ------------ > --- POWER ------------ Micro Antimatter Reactor Light Quantum Reactor > --- PROPULSION ------- Cooled Antigrav System Cooled Antigrav System Antigrav Array Combat Linear Gravjet Combat Linear Gravjet > --- UTILITY ---------- High-capacity Storage Unit Quantum Shading Machine Spectral Analyzer Experimental Signal Interpreter Experimental Terrain Scan Processor Advanced Targeting Computer Precision Energy Filter Medium Regenerative Plating Phase Redirector Experimental Hacking Suite System Mapper Quantum Router > --- WEAPON ----------- Warp Cannon Core Stripper > --- INVENTORY -------- Vortex Chain Reactor Experimental Coolant Injector Experimental Energy Well Long-range Sensor Array Long-range Terrain Scanner Experimental EM Disruption Field System Purifier High-powered Transdimensional Reconstructor High-powered Transdimensional Reconstructor Core Regenerator Subatomic Replicator Perforator Sigix Terminator Sigix Broadsword Sigix Containment Pod [Rating: 223] Favorites ----------- Power Cooled Ion Engine Engine Cooled Ion Engine Power Core Light Nuclear Core Reactor Light Quantum Reactor Propulsion Enhanced Flexi-carbon Leg Treads Advanced Treads Leg Enhanced Flexi-carbon Leg Wheel Wheel Hover Unit Combat Linear Gravjet Utility Hacking Suite Device Improved Sensor Array Storage Huge Storage Unit Processor Advanced Targeting Computer Hackware Hacking Suite Protection Centrium Medium Armor Plating Artifact Phase Redirector Weapon Shock Maul Energy Gun Improved EM Shotgun Energy Cannon Cooled Plasma Cannon Ballistic Gun Autogun Ballistic Cannon Antimatter Cannon Launcher Precision Rocket Launcher Special Weapon RU-N14's Throwing Claymores Impact Weapon Shock Maul Slashing Weapon Sigix Broadsword Piercing Weapon CR-A16's Behemoth Slayer Special Melee Weapon Dirty Datajack Build | -11 -10 -10 -9 -9 -8 -7 -7 -7 -7 -6 -6 -6 -6 -6 -6 -5 -5 -5 -5 -4 -4 -4 -4 -3 -3 -2 -2 -2 ------- Run | Scr Mat Min Mat Sto Mat Fac Low Low Zio Pro Fac Ext Cet Arc Hub Fac Upp Upp War Pro Fac Arm Lab Res Tes Res Qua Sec Slots Evolved 16 | . . . 2 . 2 2 . . . . 2 . . . . 2 . . . . 2 . . 2 . 2 . . Power 1 | . . . . . . . . . . . . . . . . . . . . . 1 . . . . . . . Propulsion 4 | . . . . . 1 . . . . . 1 . . . . 1 . . . . . . . 1 . . . . Utility 10 | . . . 2 . 1 2 . . . . 1 . . . . 1 . . . . 1 . . 1 . 1 . . Weapon 1 | . . . . . . . . . . . . . . . . . . . . . . . . . . 1 . . Parts Attached 944 | 6 27 . 49 29 54 57 9 10 3 7 73 21 13 14 31 88 12 17 15 6 50 63 28 35 56 18 53 100 Power 45 | 1 2 . . 1 . 1 . 1 . . 3 2 1 . 1 4 . . 2 . 3 4 . 1 8 . 1 9 Engine 11 | 1 2 . . 1 . 1 . . . . 2 2 . . . 2 . . . . . . . . . . . . Core 4 | . . . . . . . . 1 . . 1 . . . . 1 . . 1 . . . . . . . . . Reactor 30 | . . . . . . . . . . . . . 1 . 1 1 . . 1 . 3 4 . 1 8 . 1 9 Propulsion 146 | 2 14 . 19 2 4 7 1 3 . . 11 4 1 2 7 14 . 1 5 . 4 7 6 4 4 5 4 15 Treads 43 | 1 7 . 9 1 2 4 1 1 . . 9 3 1 1 1 1 . . . . . . . 1 . . . . Leg 36 | . . . . . . . . . . . . . . 1 6 12 . . 5 . 4 3 2 . . . . 3 Wheel 33 | 1 7 . 10 1 2 3 . 2 . . 2 1 . . . . . . . . . . . . . 1 . 3 Hover 34 | . . . . . . . . . . . . . . . . 1 . 1 . . . 4 4 3 4 4 4 9 Flight . | . . . . . . . . . . . . . . . . . . . . . . . . . . . . . Utility 499 | 1 7 . 10 10 33 35 4 2 . . 32 13 5 6 10 54 7 7 5 5 39 45 13 28 31 11 32 54 Device 310 | . 2 . 3 7 15 17 2 1 . . 22 3 2 4 3 36 5 6 4 4 28 38 7 17 21 9 21 33 Storage 18 | 1 1 . 1 . 1 1 . . . . . . 1 . 1 3 . . . . . 1 2 1 1 . 1 2 Processor 14 | . . . . . 1 1 . 1 . . 2 1 . . . . 1 . . . 3 . . 1 . . 1 2 Hackware 21 | . . . . . 1 2 . . . . 5 1 . . 2 3 . . . . 3 . . 3 1 . . . Protection 127 | . 4 . 6 3 15 14 2 . . . 3 8 2 2 4 12 1 1 1 1 5 6 4 6 8 2 8 9 Artifact 9 | . . . . . . . . . . . . . . . . . . . . . . . . . . . 1 8 Weapon 254 | 2 4 . 20 16 17 14 4 4 3 7 27 2 6 6 13 16 5 9 3 1 4 7 9 2 13 2 16 22 Energy Gun 35 | 2 . . 3 5 5 5 1 1 . 1 6 . 1 . . . . . . . . . 1 . 1 . . 3 Energy Cannon 51 | . 2 . 5 . . . . . . . 3 . . 2 4 1 2 3 1 . 2 2 6 . 4 1 9 4 Ballistic Gun 31 | . 2 . 7 2 5 3 . . . . . . 1 1 2 5 . . . . . . . . . . . 3 Ballistic Cannon 13 | . . . . . . . . . . . 1 . . . 1 . 2 1 . . . . . . 1 1 2 4 Launcher 21 | . . . 1 1 3 1 2 1 . 1 1 . . . 1 . 1 4 . 1 . 1 . . . . . 2 Special Weapon 21 | . . . . . . . . 1 1 2 4 . 1 . 1 5 . . 1 . . . . 1 4 . . . Impact Weapon 57 | . . . 4 8 4 5 1 1 1 3 11 1 2 1 3 4 . . 1 . 1 2 . . . . 1 3 Slashing Weapon 4 | . . . . . . . . . . . . . . . . . . . . . . . . . . . 2 2 Piercing Weapon 19 | . . . . . . . . . 1 . 1 1 1 1 1 1 . 1 . . . 2 2 1 3 . 2 1 Special Melee Weapon 2 | . . . . . . . . . . . . . . 1 . . . . . . 1 . . . . . . . Unidentified Prototypes 48 | . 1 . . 3 1 1 . . . . . . 6 2 1 1 . . 3 . . 1 8 1 5 . 4 10 Parts Lost 90 | . . . 3 1 5 9 . 4 . . 5 8 1 2 1 8 1 . . 1 2 2 . . 2 . 1 34 Power 14 | . . . . . . . . 1 . . 1 2 . . . 1 . . . . 2 . . . 2 . . 5 Propulsion 31 | . . . 1 . 3 3 . 2 . . 2 3 1 1 . 2 1 . . . . . . . . . . 12 Utility 35 | . . . 1 1 1 5 . 1 . . 2 3 . 1 1 5 . . . 1 . 1 . . . . 1 11 Weapon 10 | . . . 1 . 1 1 . . . . . . . . . . . . . . . 1 . . . . . 6 Highest Loss Streak 10 | . . . 1 1 3 4 . 4 . . 5 3 1 2 1 4 1 . . 1 1 1 . . 2 . 1 10 To Critical Strikes 2 | . . . . . . . . 1 . . . . 1 . . . . . . . . . . . . . . . Average Slot Usage (%) 97 | . 99 100 99 99 98 99 100 98 99 100 97 93 99 99 99 97 100 97 99 99 98 96 90 89 92 90 90 83 Engine 4 | . 13 14 11 11 9 7 7 3 . . 4 5 . . . . 5 5 2 . 2 . . . . . . . Reactor 2 | . . . . . . . . . . . . . 5 6 6 3 . . . 5 6 10 10 9 8 8 7 6 Treads 9 | . 15 14 11 11 11 15 15 14 15 15 21 13 20 19 9 2 . . . . . . . . . . . . Leg 7 | . . . . . . . . . . . . . . . 13 24 29 23 25 29 25 13 . . . . . . Wheel 4 | . 12 14 10 11 14 6 7 7 7 7 2 5 6 6 2 . . . . . . . . . . . . . Hover 2 | . . . . . . . . . . . . . . . . . . 3 2 . . 10 20 23 23 20 20 17 Device 12 | . 2 . 12 19 16 11 15 17 23 23 5 3 . 6 5 9 11 11 14 14 10 10 17 11 7 13 14 15 Storage 6 | . 14 14 11 11 9 7 7 7 7 7 6 6 6 6 6 5 5 5 5 5 5 5 5 4 4 4 4 4 Processor 12 | . . . . . 8 15 10 11 15 15 13 13 20 20 20 11 16 17 17 17 15 15 15 14 14 13 14 18 Hackware 12 | . . . . . 7 14 15 10 7 7 25 23 13 6 19 21 5 5 5 5 19 19 8 18 22 17 14 5 Protection 5 | . 10 14 20 13 4 3 3 3 . . . 4 12 12 1 1 10 10 7 7 . . 3 1 1 3 2 4 Energy Gun 2 | . 3 . 1 13 6 4 6 3 . . 2 . . . . . . . . . . . . . . . . . Energy Cannon 2 | . 9 14 6 . . . . . . . . . . 1 2 3 5 4 4 . 4 4 4 . 2 3 3 1 Ballistic Gun 1 | . 15 14 8 . 1 1 . . . . . . . 5 4 2 . . . . . . . . . . . 1 Impact Weapon 5 | . . . 4 7 10 8 7 10 7 10 9 10 11 . 4 2 . . . 5 4 3 . . . . . . Naked Turns . | . . . . . . . . . . . . . . . . . . . . . . . . . . . . . Heaviest Build 132 | 13 38 38 69 69 108 105 103 99 99 99 114 110 118 132 124 128 82 85 102 92 103 102 109 107 93 109 106 117 Greatest Support 148 | 10 40 10 20 12 24 16 16 16 10 10 110 28 10 83 112 128 109 91 143 143 143 148 93 106 106 110 110 106 Greatest Overweight (x) 16 | 1 3 3 6 6 8 10 6 9 9 9 9 10 11 13 11 2 . . . . . 1 1 1 2 1 1 16 Average Overweight (x) 2 | . 2 3 5 5 4 8 5 7 9 9 1 5 10 10 4 . . . . . . . . . . . . . Largest Inventory Capacity 25 | 8 15 15 20 20 25 25 25 25 25 25 25 25 25 25 25 25 20 20 20 20 20 20 20 20 20 20 20 24 Average Capacity 22 | 7 14 15 19 20 23 25 25 25 25 25 25 25 25 25 25 24 20 20 20 20 20 20 20 20 20 20 20 21 Most Carried 25 | 5 15 15 20 20 25 25 25 25 25 25 25 25 25 25 25 25 20 20 20 20 20 20 20 20 20 20 20 24 Average Carried 21 | 2 13 15 17 19 20 24 24 23 24 24 24 24 24 24 24 23 20 19 19 19 19 19 18 19 19 19 19 19 Final Capacity 25 | 8 15 15 20 20 25 25 25 25 25 25 25 25 25 25 25 20 20 20 20 20 20 20 20 20 20 20 20 24 Final Carried 25 | 4 15 15 20 20 25 25 25 24 25 25 25 25 25 25 24 20 20 20 19 20 20 20 20 20 20 20 20 11 Class Distribution -------------------- 21% | Hacker-Assassin 15% | Assassin 12% | Mutant 10% | Hacker-Mutant 7% | Scavenger-Mutant 6% | Wizard-Assassin 5% | Commander-Mutant 4% | Wizard-Mutant 4% | Scavenger-Assassin 3% | Wizard-Scout Dominant Class ---------------- Mutant | -10/Materials Mutant | -10/Mines Mutant | -9/Materials Commander-Mutant | -9/Storage Assassin | -8/Materials Hacker-Assassin | -7/Factory Hacker-Assassin | -7/Lower Caves Assassin | -7/Lower Caves Assassin | -7/Zion Assassin | -6/Proximity Caves Hacker-Assassin | -6/Factory Hacker-Assassin | -6/Extension Commander-Mutant | -6/Cetus Scavenger-Assassin | -6/Archives Hacker-Assassin | -6/Hub_04(d) Hacker-Mutant | -5/Factory Scavenger-Mutant | -5/Upper Caves Scavenger-Mutant | -5/Upper Caves Scavenger-Mutant | -5/Warlord Scavenger-Assassin | -4/Proximity Caves Wizard-Assassin | -4/Factory Wizard-Mutant | -4/Armory Hacker-Mutant | -4/Lab Wizard-Scout | -3/Research Wizard-Mutant | -3/Testing Wizard-Scout | -2/Research Wizard-Scout | -2/Quarantine Alien-Mutant | -2/Section 7 Resources | -11 -10 -10 -9 -9 -8 -7 -7 -7 -7 -6 -6 -6 -6 -6 -6 -5 -5 -5 -5 -4 -4 -4 -4 -3 -3 -2 -2 -2 ----------- Run | Scr Mat Min Mat Sto Mat Fac Low Low Zio Pro Fac Ext Cet Arc Hub Fac Upp Upp War Pro Fac Arm Lab Res Tes Res Qua Sec Matter Collected 13517 | 209 370 81 722 320 778 615 167 181 26 121 704 268 172 188 368 1043 237 266 150 100 420 714 320 193 852 1041 1285 1606 Remotely . | . . . . . . . . . . . . . . . . . . . . . . . . . . . . . Salvage Created 19713 | . 463 81 978 957 1144 1136 198 96 . 169 1128 668 64 209 516 2473 26 122 563 33 514 676 63 193 1461 508 1431 3843 Parts 815 | . 23 3 58 43 65 44 9 6 . 8 45 24 5 16 26 86 5 8 28 1 11 30 1 12 82 20 25 131 Haulers Intercepted 10 | . . . 4 2 4 . . . . . . . . . . . . . . . . . . . . . . . Recyclers Shooed 11 | . . . . . 1 . . . . . . 1 . . . 3 . . . . . . . 2 4 . . . Parts Field Recycled . | . . . . . . . . . . . . . . . . . . . . . . . . . . . . . Retrieved Matter . | . . . . . . . . . . . . . . . . . . . . . . . . . . . . . Parts Self-Destructed 38 | . . . . . . . 7 5 . 5 . . . . . . 13 6 . 2 . . . . . . . . Prevented 9 | . . . . . . . 4 4 . 1 . . . . . . . . . . . . . . . . . . Kills | -11 -10 -10 -9 -9 -8 -7 -7 -7 -7 -6 -6 -6 -6 -6 -6 -5 -5 -5 -5 -4 -4 -4 -4 -3 -3 -2 -2 -2 ------- Run | Scr Mat Min Mat Sto Mat Fac Low Low Zio Pro Fac Ext Cet Arc Hub Fac Upp Upp War Pro Fac Arm Lab Res Tes Res Qua Sec Combat Hostiles Destroyed 346 | . 10 . 19 18 25 22 10 6 . 8 19 6 . . 10 37 6 7 21 1 7 16 1 3 17 6 11 60 Melee 43 | . . . 3 6 8 7 1 1 . . 3 . . . 1 2 . . . . 1 3 1 1 . . 1 4 Guns 33 | . 4 . 4 2 4 3 . . . 1 2 . . . 1 9 . . . . . . . . . . . 3 Cannons 91 | . 4 . 8 . . . . . . . 2 . . . 3 5 2 2 4 . 1 6 . . 12 6 9 27 AOE 112 | . 2 . 4 . 9 5 7 4 . 6 8 . . . 5 15 4 5 17 1 . 3 . . . . . 17 Classes Destroyed 30 | . 3 2 4 . 6 2 . . . 1 1 . . . . 2 . . 4 . . . . . . . 3 2 Worker 13 | . . 1 . . . 1 . . . . 2 . . . 2 7 . . . . . . . . . . . . Builder 26 | . . . . . 1 4 . . . . 2 4 . . 1 2 . . . . 4 . . 3 3 . . 2 Tunneler 2 | . . . . . . 1 . . . . 1 . . . . . . . . . . . . . . . . . Hauler 10 | . . . 4 2 4 . . . . . . . . . . . . . . . . . . . . . . . Recycler 19 | . . 1 . 1 1 2 . . . . 2 1 . . 1 5 . . . . . . . 1 2 . 1 1 Carrier 6 | . . . . . . . . . . . . . . . . . . . . . . . . . . . . 6 Minesweeper 1 | . . . . . . . . . . 1 . . . . . . . . . . . . . . . . . . Mechanic 1 | . . . . . . . . . . . . . . . . 1 . . . . . . . . . . . . Operator 13 | . 1 . 4 2 . . . . . . . . . 6 . . . . . . . . . . . . . . Drone 2 | . . . . . 2 . . . . . . . . . . . . . . . . . . . . . . . Watcher 36 | . 2 . 4 2 5 2 . . . . 2 2 . . 4 3 . . . . 2 . . 1 2 . 2 3 Swarmer 54 | . . . 6 . 3 4 7 4 . 4 3 . . . 5 2 5 5 . . . 6 . . . . . . Cutter 5 | . . . . . 3 . . . . . . . . . . . . . . . . . . 2 . . . . Saboteur 5 | . . . . . . . . . . . . . . . . . . . 4 . . . . . . . . 1 Grunt 109 | . 10 . 9 10 7 12 1 . . 1 5 . . . . 12 . . 4 . 3 5 . . 3 5 7 15 Brawler 13 | . . . . . . . . . . . . . . . . 4 . . 3 . . 1 . . . . . 5 Duelist 6 | . . . 1 . . . . . . . 1 . . . . 1 . . 1 . . . . . . . . 2 Protector 9 | . . . . . . . . . . . . . . . . . . . 2 . . . . . . . . 7 Researcher 1 | . . . . . . . . . . . . . . . . . . . . . . . . . . . 1 . Sentry 37 | . . . 3 8 7 4 . . . . 3 3 . . 3 3 . . . . . . . 1 . 1 . 1 Demolisher 1 | . . . . . . . . . . . . . . . . . . . 1 . . . . . . . . . Specialist 4 | . . . . . 2 . . . . . . . . . . 2 . . . . . . . . . . . . Hunter 28 | . . . . . 2 . 1 1 . 2 3 1 . . 2 4 . . 2 1 . . . . . . 2 7 Programmer 48 | . . . . . . 2 1 1 . 1 3 . . . . 8 1 2 3 . 4 4 . . 10 . . 8 Heavy 2 | . . . . . 1 . . . . . . . . . . 1 . . . . . . . . . . . . Behemoth 3 | . . . . . . . . . . . 1 2 . . . . . . . . . . . . . . . . Tracker 5 | . . . . . . . . . . . . . . . . . . . . . . . . . 2 . . 3 Combat Programmer 6 | . . . . . . . . . . . . . . . . . . . . . . . . . 2 . . 4 Investigator 1 | . . . . . . . . . . . . . . . . . . . . . . . . . . . . 1 Striker 3 | . . . . . . . . . . . . . . . . . . . 1 . . . . . . . . 2 Executioner 4 | . . . . . . . . . . . . . . . . . . . . . . . . . . . . 4 Alpha 7 2 | . . . . . . . . . . . . . . . . . . . . . . . . . . . 1 1 Fortress 1 | . . . . . . . . . . . . . . . . . . . . . . . . . . . 1 . Best Kill Streak 23 | . 2 1 4 5 7 9 4 4 . 4 5 2 . 1 8 14 4 3 12 1 2 5 1 2 4 3 4 23 Combat Bots Only 17 | . 2 . 4 5 6 7 4 4 . 4 4 1 . . 5 9 4 3 12 1 2 5 1 2 3 3 3 17 Max Kills in Single Turn 23 | . 1 1 2 1 3 6 3 2 . 3 4 1 1 1 5 5 2 3 5 1 1 3 1 1 1 1 1 23 Gunslinging . | . . . . . . . . . . . . . . . . . . . . . . . . . . . . . Exploded 17 | . 1 . 2 . 2 4 3 2 . 3 3 . . . 2 3 2 3 5 1 . 3 . . . . . 17 Melee 1 | . . . 1 1 1 1 1 1 . . 1 . . . 1 1 . . . . 1 1 1 1 . . 1 1 Uniques/NPCs Destroyed 2 | . . . . . . . . . . . . . 1 . . . . . . . . . 1 . . . . . A7 (-6/Cetus) A5 (-4/Lab) Combat | -11 -10 -10 -9 -9 -8 -7 -7 -7 -7 -6 -6 -6 -6 -6 -6 -5 -5 -5 -5 -4 -4 -4 -4 -3 -3 -2 -2 -2 -------- Run | Scr Mat Min Mat Sto Mat Fac Low Low Zio Pro Fac Ext Cet Arc Hub Fac Upp Upp War Pro Fac Arm Lab Res Tes Res Qua Sec Damage Taken 30428 | . 458 . 639 367 1602 2739 128 416 . 472 2503 1623 412 183 332 3839 226 132 565 65 1410 1049 . 495 1734 76 1990 6973 Core 3892 | . 133 . 59 44 128 384 . 63 . 71 363 239 10 . 29 246 48 . 71 . 140 84 . 95 196 51 130 1308 Absorbed by Shields 867 | . . . . . . . . . . . . 7 41 . . . . . 42 . . . . . . . . 777 Redirected to Core 226 | . . . . . . . . . . . . . . . . . . . . . . . . . . . . 226 Redirected to Shielding 99 | . . . . . . . . . . . . 33 4 . . . . . . . . . . . . . . 62 Regen/Repaired (Parts) 6327 | . . . . 67 219 70 . . . . 656 . 19 19 45 1903 . . . . 1106 . 78 64 431 102 640 908 Core Remaining (%) 62 | 100 . 46 . 74 76 . . . . 26 . . . . 24 . . . . 63 . . 80 . 77 . . . Volleys Fired 753 | . 32 5 66 15 45 26 4 4 . 6 28 . . 17 30 72 20 26 20 3 16 31 3 29 111 15 56 73 Largest 2 | . 2 2 2 2 2 2 1 1 . 1 2 . . 2 2 2 2 2 1 1 1 2 1 1 1 2 2 2 Hottest 250 | . 80 79 101 90 90 78 43 43 . 75 165 . . 70 75 140 75 105 105 43 110 120 40 200 100 150 250 130 Shots Fired 998 | . 64 10 116 30 72 51 4 4 . 6 41 . . 22 37 103 28 27 20 3 16 37 3 29 111 16 64 84 Gun 375 | . 49 5 64 30 62 50 . . . 2 22 . . 17 6 39 . . . . . . . . . . . 29 Cannon 492 | . 15 5 50 . . . . . . . 11 . . 5 24 48 25 21 11 . 16 35 3 3 87 16 64 53 Launcher 40 | . . . 2 . 10 1 4 3 . 1 1 . . . 2 . 3 6 . 3 . 2 . . . . . 2 Special 91 | . . . . . . . . 1 . 3 7 . . . 5 16 . . 9 . . . . 26 24 . . . Kinetic 301 | . 29 5 54 8 36 18 . . . . 2 . . 17 11 40 8 1 . . . . . . . 9 14 49 Thermal 363 | . 10 . . . . 17 . . . 2 23 . . 5 19 47 17 20 1 . 16 29 3 3 87 7 50 7 Explosive 78 | . . . 2 . 10 1 4 3 . 4 8 . . . 7 16 3 6 9 3 . 2 . . . . . . Electromagnetic 188 | . 25 5 60 22 26 15 . . . . 8 . . . . . . . . . . . . . . . . 27 Entropic 16 | . . . . . . . . . . . . . . . . . . . 10 . . 6 . . . . . . Robot Hit Streak 22 | . 5 8 11 22 9 7 . 6 . 5 7 . . 7 7 17 5 3 13 . 15 12 . 10 15 8 12 13 Robot Miss Streak 6 | . 3 1 6 3 4 2 . 1 . 3 3 . . 2 2 2 1 1 2 . . 1 . 4 2 6 5 6 Penetration Max 2 | . . . . . . . . . . . . . . . . 1 . . . . . . . . . . 1 2 Secondary Targets 3 | . 1 . . . 1 1 . . . . . . . . . . . . . . . . . . . . . . Max Gunslinging Chain 1 | . 1 . . . 1 1 . . . . . . . . . . . . . . . . . . . . . . Shots Hit Robots 950 | . 37 8 78 63 86 81 6 11 . 8 44 25 6 25 17 103 12 5 16 . 31 38 1 14 78 8 32 117 Core Hits 602 | . 19 2 33 15 54 30 7 5 . 8 24 2 2 8 25 71 10 10 43 7 3 14 . 3 26 15 38 128 Critical Kills 59 | . . . . 2 4 2 1 . . . . . . 1 2 1 . . . . 1 1 . . 2 6 11 25 Critical Parts Destroyed 162 | . . . 2 11 5 10 3 2 . 2 6 9 . . 1 16 . . . . 12 4 . . . 7 17 55 Critical Strikes 261 | . . . 2 13 10 14 4 2 . 2 7 10 1 3 3 22 1 . 6 . 13 6 . . 4 13 29 96 Meltdown 5 | . . . . . . . . . . . . . . . 1 . . . . . . . . . 2 . 1 1 Destroy 136 | . . . . . . . . . . . . . . 1 . 5 . . . . . . . . . 13 28 89 Blast 1 | . . . . . . . . . . . . . . . . . 1 . . . . . . . . . . . Corrupt 2 | . . . . . . . . . . . . . . . . . . . . . . . . . . . . 2 Smash 96 | . . . 2 13 10 14 4 2 . 2 6 10 . . 2 13 . . . . 13 5 . . . . . . Sever 13 | . . . . . . . . . . . 1 . . . . 4 . . 4 . . . . . . . . 4 Impale 5 | . . . . . . . . . . . . . 1 2 . . . . . . . . . . 2 . . . Sunder 3 | . . . . . . . . . . . . . . . . . . . 2 . . 1 . . . . . . Melee Attacks 751 | . . . 18 68 74 91 14 25 . 5 44 41 6 9 20 49 . . . 7 99 39 20 6 18 1 26 71 Kinetic 17 | . . . . . . . . . . . . . . . . . . . . . . . . . . . 4 13 Impact 573 | . . . 18 68 74 91 14 25 . 5 36 36 2 . 18 48 . . . 7 97 34 . . . . . . Slashing 66 | . . . . . . . . . . . . . . . . . . . . . . . . . . . 8 58 Piercing 95 | . . . . . . . . . . . 8 5 4 9 2 1 . . . . 2 5 20 6 18 1 14 . Sneak Attacks 61 | . . . 4 5 5 5 1 . . 1 4 5 4 8 1 5 . . . . 4 . . . 5 . 1 3 Combat Hostiles 3 | . . . . 1 . . 1 . . . . . . . . 1 . . . . . . . . . . . . Follow-up Attacks 16 | . . . . 5 4 3 . 1 . . . 2 . . . 1 . . . . . . . . . . . . Damage Inflicted 73035 | . 811 153 2249 2029 4338 3601 1018 874 . 1205 3457 1350 351 1023 2042 7802 916 796 3543 216 1781 2247 81 558 3565 125 2106 24798 Guns 4780 | . 360 58 577 407 688 592 . . . 38 276 . . 314 55 858 . . . . . . . . . . . 557 Cannons 12397 | . 281 95 838 . . . . . . . 334 . . 97 192 988 454 277 692 . 102 1242 . 370 3213 125 1481 1616 Explosions 35191 | . 170 . 328 . 1542 508 569 346 . 831 1684 . . . 1372 3587 462 519 2628 216 . 355 . 89 . . 396 19589 Melee 19310 | . . . 506 1614 2108 2501 449 528 . 261 950 1350 351 612 271 1782 . . . . 1679 650 81 . 352 . 229 3036 Ramming 150 | . . . . 8 . . . . . . . . . . 1 42 . . . . . . . 99 . . . . Kinetic 4830 | . 217 58 458 48 386 240 . . . . 72 . . 314 55 858 334 . . . . . . . . 125 326 1339 Thermal 29300 | . 235 . 151 . 44 349 . . . 38 383 . . 97 192 1231 120 277 . . 102 904 . 459 3213 . 1679 19826 Explosive 14188 | . . . 177 . 1498 389 569 346 . 831 1684 . . . 1170 3344 462 519 2628 216 . 355 . . . . . . Electromagnetic 3421 | . 359 95 957 359 302 122 . . . . 155 . . . 202 . . . . . . . . . . . . 870 Impact 14547 | . . . 506 1614 2108 2501 449 528 . 261 852 1318 77 . 271 1737 . . . . 1675 650 . . . . . . Slashing 3970 | . . . . . . . . . . 75 213 . . . 151 545 . . 223 . . . . . . . . 2763 Piercing 1599 | . . . . . . . . . . . 98 32 274 612 . 45 . . . . 4 . 81 . 352 . 101 . Entropic 1030 | . . . . . . . . . . . . . . . . . . . 692 . . 338 . . . . . . Highest Corruption 8 | . . . . . . 3 2 3 3 3 1 1 1 1 2 8 7 1 2 2 3 3 . . 5 . 1 . Average Corruption 2 | . . . . . . 2 1 2 3 2 1 1 1 1 1 3 3 1 1 1 1 1 . . 2 . 1 . Corruption Purged 50 | . . . . . . 3 2 . . . . . . 1 . 10 7 1 . 2 8 7 . . 8 . 1 . Corruption Blocked . | . . . . . . . . . . . . . . . . . . . . . . . . . . . . . Effects 134 | . . . . . . 10 2 39 2 18 11 12 6 1 1 14 4 . . . 1 6 . . 6 . 1 . Message Errors 37 | . . . . . . 4 . 12 1 5 2 3 . . . 4 1 . . . 1 2 . . 2 . . . Matter Fused 33 | . . . . . . 3 1 6 1 3 3 4 4 . . 2 1 . . . . 2 . . 3 . . . Heat Flow Errors 20 | . . . . . . 1 . 8 . 3 1 1 . . . 4 1 . . . . . . . . . 1 . Energy Discharges 17 | . . . . . . 1 . 3 . 4 3 1 1 . . 3 . . . . . 1 . . . . . . Parts Rejected 1 | . . . . . . . . . . . . . . . . . 1 . . . . . . . . . . . Data Loss (minor) 17 | . . . . . . . 1 6 . 2 1 3 1 . 1 1 . . . . . 1 . . . . . . Data Loss (major) 6 | . . . . . . 1 . 2 . 1 . . . 1 . . . . . . . . . . 1 . . . Alerts 3 | . . . . . . . . 2 . . 1 . . . . . . . . . . . . . . . . . Overload Shots 13 | . . . . . . . . . . . 2 . . . . 1 . 4 1 . . 4 . . . . 1 . Effects 1 | . . . . . . . . . . . . . . . . . . . . . . 1 . . . . . . Heat Surge 1 | . . . . . . . . . . . . . . . . . . . . . . 1 . . . . . . Overflow Damage 10685 | . 13 . 167 607 572 981 403 254 . 266 701 829 23 173 244 944 132 67 1 . 1082 378 36 178 348 . 201 2085 Projectiles 965 | . 13 . 34 . . . . . . . 41 . . . 15 80 117 47 1 . 10 48 . 149 172 . 175 63 Explosions 2111 | . . . 16 . 10 . 83 66 . 45 61 . . . 70 64 15 20 . . . 25 . . . . . 1636 Melee 7609 | . . . 117 607 562 981 320 188 . 221 599 829 23 173 159 800 . . . . 1072 305 36 29 176 . 26 386 Knockbacks 79 | . . . 2 5 1 10 2 2 . 1 5 2 1 . . 2 6 . . . 12 4 . . . 3 14 7 Impact 48 | . . . 2 5 1 9 2 2 . 1 5 2 1 . . 2 . . . . 12 4 . . . . . . Kinetic 29 | . . . . . . . . . . . . . . . . . 6 . . . . . . . . 3 14 6 Secondary 2 | . . . . . . 1 . . . . . . . . . . . . . . . . . . . . . 1 Self-Inflicted Damage 1404 | . 154 . 90 3 . . . 64 . . . . . . 190 . . 35 . . . . . 48 . . . 820 Shots 14 | . 4 . 4 . . . . 2 . . . . . . 2 . . 1 . . . . . . . . . 1 Rammed 8 | . . . . 3 . . . . . . . . . . . . . . . . . . . 5 . . . . Targets Rammed 12 | . . . . 3 . . . . . . . . . . 1 3 . . . . . . . 5 . . . . Kicked 4 | . . . . . . . . . . . . . . . 1 3 . . . . . . . . . . . . Crushed . | . . . . . . . . . . . . . . . . . . . . . . . . . . . . . Highest Temperature 328 | . 279 82 33 21 18 268 . 260 . 250 99 78 . . 27 228 130 175 189 . 328 311 196 184 304 182 140 192 Average Temperature 61 | . 70 33 12 9 5 124 . 117 . 98 32 42 . . 11 57 43 85 73 . 102 32 60 36 67 76 58 46 Received Heat Transfer 4385 | . 183 . 207 201 450 1050 18 . . 97 348 288 40 18 30 553 27 . 37 . 114 127 . 27 207 . 153 210 Effects 2 | . . . . . . . . 2 . . . . . . . . . . . . . . . . . . . . Energy Bleed 1 | . . . . . . . . 1 . . . . . . . . . . . . . . . . . . . . Interference 1 | . . . . . . . . 1 . . . . . . . . . . . . . . . . . . . . Siege Activations . | . . . . . . . . . . . . . . . . . . . . . . . . . . . . . Robots Corrupted 6 | . . . 2 2 . . . . . . . . . . . . . . . . . . . . . . . 2 Combat Hostiles 4 | . . . . 2 . . . . . . . . . . . . . . . . . . . . . . . 2 Parts Fried 114 | . 2 . 7 10 11 15 3 1 . 1 10 17 . . 4 7 . . . . 19 3 . . . . . 4 Impact Corruptions 211 | . . . 3 23 20 35 9 7 . 6 17 22 . . 3 22 . . . . 33 10 . 1 . . . . Robots Melted 8 | . . . . . . . . . . . 1 . . . 1 . . . . . . 1 . . 3 . 1 1 Combat Hostiles 6 | . . . . . . . . . . . 1 . . . . . . . . . . 1 . . 3 . . 1 Parts Melted 22 | . . . . . . 1 . . . . 1 . . . 2 4 . 1 . . 1 . . . 6 . 3 3 Heat Transferred 9232 | . 300 . 250 . 50 507 . . . 30 602 . . 150 300 1605 150 290 . . . 792 . 180 2479 . 1242 305 Parts Sabotaged 5 | . . . . . . . . . . . . . . . . . . . . . . . . . . . . 5 Parts Stolen . | . . . . . . . . . . . . . . . . . . . . . . . . . . . . . Parts Stripped . | . . . . . . . . . . . . . . . . . . . . . . . . . . . . . Power Chain Reactions 7 | . 2 . 3 . 1 1 . . . . . . . . . . . . . . . . . . . . . . Missiles Intercepted . | . . . . . . . . . . . . . . . . . . . . . . . . . . . . . Alert | -11 -10 -10 -9 -9 -8 -7 -7 -7 -7 -6 -6 -6 -6 -6 -6 -5 -5 -5 -5 -4 -4 -4 -4 -3 -3 -2 -2 -2 ------- Run | Scr Mat Min Mat Sto Mat Fac Low Low Zio Pro Fac Ext Cet Arc Hub Fac Upp Upp War Pro Fac Arm Lab Res Tes Res Qua Sec Peak Influence 4257 | . 328 40 193 419 486 253 . . . . 629 171 635 479 681 1299 . . . . 117 355 . 142 380 398 458 4257 Initial 333 | . . 30 . 53 66 108 . . . . . 91 87 254 97 333 . . . . . 22 . . 2 162 223 15 Average 208 | . 90 32 116 187 211 88 . . . . 227 66 407 378 118 452 . . . . 27 184 . 85 132 327 268 881 Maximum Alert Level 5 | . 1 . . 2 2 1 . . . . 2 . 2 2 2 4 . . . . . 1 . . 1 1 2 5 Low Security (%) 67 | 100 81 100 100 65 39 97 . . . . 50 100 15 . 73 37 . . . . 100 63 . 100 73 11 19 43 Level 1 22 | . 18 . . 32 53 2 . . . . 25 . 25 47 23 20 . . . . . 36 . . 26 88 74 33 Level 2 6 | . . . . 1 6 . . . . . 24 . 59 52 2 9 . . . . . . . . . . 6 . Level 3 2 | . . . . . . . . . . . . . . . . 27 . . . . . . . . . . . . Level 4 . | . . . . . . . . . . . . . . . . 4 . . . . . . . . . . . . Level 5 . | . . . . . . . . . . . . . . . . . . . . . . . . . . . . . High Security . | . . . . . . . . . . . . . . . . . . . . . . . . . . . . . Max Security . | . . . . . . . . . . . . . . . . . . . . . . . . . . . . 22 Squads Dispatched 121 | . 4 . 4 5 6 8 . . . . 9 . . . 5 17 . . . . 11 7 . 3 7 3 3 29 Investigation 23 | . 3 . 1 3 3 2 . . . . 3 . . . 1 2 . . . . 3 1 . . . 1 . . Extermination 30 | . . . . . . 3 . . . . 5 . . . 1 5 . . . . 6 3 . 1 3 . 1 2 Reinforcement 24 | . 1 . 3 2 3 . . . . . 1 . . . 2 3 . . . . 2 3 . 1 1 1 1 . Assault 25 | . . . . . . . . . . . . . . . . 5 . . . . . . . . . . . 20 Garrison 6 | . . . . . . 3 . . . . . . . . 1 2 . . . . . . . . . . . . Intercept 13 | . . . . . . . . . . . . . . . . . . . . . . . . 1 3 1 1 7 Searches Triggered . | . . . . . . . . . . . . . . . . . . . . . . . . . . . . . Construction Impeded 1 | . . . . . . . . . . . . . . . . 1 . . . . . . . . . . . . Haulers Reinforced 2 | . . . . . . . . . . . 1 . . . . . . . . . . . . . . 1 . . Active Scanning Responses . | . . . . . . . . . . . . . . . . . . . . . . . . . . . . . Cargo Convoy Interrupts 1 | . . . . . . . . . . . 1 . . . . . . . . . . . . . . . . . Stealth | -11 -10 -10 -9 -9 -8 -7 -7 -7 -7 -6 -6 -6 -6 -6 -6 -5 -5 -5 -5 -4 -4 -4 -4 -3 -3 -2 -2 -2 --------- Run | Scr Mat Min Mat Sto Mat Fac Low Low Zio Pro Fac Ext Cet Arc Hub Fac Upp Upp War Pro Fac Arm Lab Res Tes Res Qua Sec Distress Signals 36 | . 1 . 6 . 3 2 . . . . 5 . 1 . 4 4 . . . . 2 . . 1 3 1 3 . Communications Jammed . | . . . . . . . . . . . . . . . . . . . . . . . . . . . . . Distress Signals . | . . . . . . . . . . . . . . . . . . . . . . . . . . . . . Times Spotted 695 | . 21 . 43 31 42 40 7 6 . 11 36 16 20 15 23 64 9 4 29 2 29 23 1 8 27 8 19 161 Peak Tracking Total 23 | . 3 . 4 4 5 7 3 4 . 4 5 4 5 2 7 6 5 3 13 2 14 7 1 3 4 6 4 23 Tactical Retreats 33 | . . . 2 1 2 3 1 . . 1 2 2 . . . 4 1 . . . 5 4 . 1 1 1 . 2 Traps | -11 -10 -10 -9 -9 -8 -7 -7 -7 -7 -6 -6 -6 -6 -6 -6 -5 -5 -5 -5 -4 -4 -4 -4 -3 -3 -2 -2 -2 ------- Run | Scr Mat Min Mat Sto Mat Fac Low Low Zio Pro Fac Ext Cet Arc Hub Fac Upp Upp War Pro Fac Arm Lab Res Tes Res Qua Sec Traps Triggered 7 | . 2 . . . . . . . . . . 1 . . 3 . . . . . . 1 . . . . . . Indirectly 1 | . . . . . . . . . . . . . . . 1 . . . . . . . . . . . . . Trap Hack Attempts . | . . . . . . . . . . . . . . . . . . . . . . . . . . . . . Triggered . | . . . . . . . . . . . . . . . . . . . . . . . . . . . . . Disarmed 8 | . . . . . . . . . . . . . . . . . . . . . . . . . . . 8 . Reprogrammed 48 | . . . . . 6 6 . . . . 4 . . . . . . . . . 11 6 . 6 9 . . . Reused 20 | . . . . . . 3 . . . 3 4 . . . . . . . . . 5 1 . 3 1 . . . Traps Extracted . | . . . . . . . . . . . . . . . . . . . . . . . . . . . . . Installed 3 | . . . . . . . . . . 3 . . . . . . . . . . . . . . . . . . Triggered 43 | . . . . . . 3 3 3 . 3 6 . . . . 1 . . 13 . 6 1 . 3 1 . . . Most Traps Carried 4 | . . . . . . . 2 2 2 4 . . . . . . . . . . . . . . . . . . Machines | -11 -10 -10 -9 -9 -8 -7 -7 -7 -7 -6 -6 -6 -6 -6 -6 -5 -5 -5 -5 -4 -4 -4 -4 -3 -3 -2 -2 -2 ---------- Run | Scr Mat Min Mat Sto Mat Fac Low Low Zio Pro Fac Ext Cet Arc Hub Fac Upp Upp War Pro Fac Arm Lab Res Tes Res Qua Sec Machines Disabled 119 | . 3 . 3 2 . . . 1 . . 12 . 2 4 25 6 . . 1 . 1 6 3 . 2 . 12 36 Max in Single Turn 28 | . 2 . 1 1 . . . 1 . . 4 . . 1 16 2 . . 1 . 1 1 1 . 1 . 2 28 Garrison Access 13 | . . . . . . 2 . . . . 1 . . . 1 2 . . . . 3 . . 1 1 1 1 . Network Hub 2 | . . . . . . . . . . . . . . . 2 . . . . . . . . . . . . . Machines Sabotaged . | . . . . . . . . . . . . . . . . . . . . . . . . . . . . . Garrisons Compromised 1 | . . . . . . . . . . . 1 . . . . . . . . . . . . . . . . . Overloaded Fab Kills . | . . . . . . . . . . . . . . . . . . . . . . . . . . . . . Hacking | -11 -10 -10 -9 -9 -8 -7 -7 -7 -7 -6 -6 -6 -6 -6 -6 -5 -5 -5 -5 -4 -4 -4 -4 -3 -3 -2 -2 -2 --------- Run | Scr Mat Min Mat Sto Mat Fac Low Low Zio Pro Fac Ext Cet Arc Hub Fac Upp Upp War Pro Fac Arm Lab Res Tes Res Qua Sec Machines Accessed 222 | . 9 . 10 13 15 15 2 . . . 19 11 1 . 12 18 1 1 3 . 27 12 1 12 16 1 15 8 Terminals 139 | . 7 . 9 10 10 7 1 . . . 11 10 1 . 11 7 . . . . 14 7 . 5 10 . 12 7 Fabricators 18 | . . . . . . 3 . . . . 3 . . . . 3 . . . . 3 4 . . 1 1 . . Repair Stations 20 | . . . . 1 1 1 . . . . 3 . . . . 2 . . . . 4 . . 3 2 . 2 1 Recycling Units 14 | . 2 . . 2 2 . . . . . 1 1 . . . 2 . . . . 2 1 . 1 . . . . Scanalyzers 11 | . . . 1 . 2 1 . . . . . . . . . 2 . . . . 1 . . 2 2 . . . Garrison Access 13 | . . . . . . 3 . . . . 1 . . . 1 2 . . . . 3 . . 1 1 . 1 . Total Hacks 949 | . 27 . 39 31 44 35 2 . . . 64 27 1 . 51 125 6 1 9 . 140 47 4 96 98 4 77 21 Successful 685 | . 16 . 28 20 30 29 2 . . . 52 17 1 . 36 98 6 1 9 . 106 38 4 63 62 4 46 17 Failed 260 | . 10 . 11 11 13 6 . . . . 12 10 . . 15 27 . . . . 33 9 . 32 36 . 31 4 Catastrophic 23 | . 2 . 1 . . . . . . . 2 . . . 2 2 . . . . 6 . . 5 . . 3 . Database Lockouts 4 | . 1 . . . 1 . . . . . . . . . . . . . . . 1 . . 1 . . . . Manual 402 | . 20 . 16 10 19 13 . 1 . . 38 14 1 . 28 44 . . . . 68 33 1 28 22 1 37 8 Terminals 602 | . 22 . 34 26 32 19 1 . . . 35 24 1 . 49 56 . . . . 86 29 . 40 69 . 63 16 Fabricators 71 | . . . . . . 7 . . . . 11 . . . . 15 . . . . 15 15 . . 4 4 . . Repair Stations 117 | . . . . 3 4 2 . . . . 12 . . . . 26 . . . . 23 . . 12 18 . 12 5 Recycling Units 41 | . 5 . . 2 2 . . . . . 5 3 . . . 8 . . . . 7 3 . 6 . . . . Scanalyzers 76 | . . . 5 . 6 3 . . . . . . . . . 17 . . . . 5 . . 34 6 . . . Garrison Access 21 | . . . . . . 4 . . . . 1 . . . 2 3 . . . . 4 . . 4 1 . 2 . Terminal Hacks 291 | . 9 . 14 12 13 11 2 . . . 15 10 1 . 22 24 6 1 9 . 43 13 4 16 32 . 25 9 Record 19 | . . . . . . . 1 . . . . . . . . . 6 . 8 . . . 3 . . . 1 . Part Schematic 29 | . 2 . . . . 1 . . . . 1 1 . . 3 2 . . . . 6 . . 5 8 . . . Robot Schematic 4 | . . . . . . . . . . . . . . . . 1 . . . . 2 . . . 1 . . . Robot Analysis 17 | . . . 1 . 1 . . . . . 1 1 . . 1 2 . . . . 5 . . 1 1 . 3 . Prototype ID Bank 29 | . 1 . 3 1 2 2 . . . . . . . . 4 3 . . . . 4 1 . 1 3 . 3 1 Open Door 20 | . . . . 4 . . 1 . . . . 5 1 . . . . 1 1 . . 1 . . 1 . 1 4 Level Access Points 2 | . . . . . . . . . . . . . . . 1 . . . . . . . . . 1 . . . Branch Access Points 6 | . . . 1 . . 1 . . . . 1 . . . . 1 . . . . 1 . . 1 . . . . Machine Index 4 | . . . . . . . . . . . . . . . 1 1 . . . . 1 . . . 1 . . . Terminal Index 13 | . 1 . 1 1 1 1 . . . . . 1 . . 1 1 . . . . 1 1 . 1 . . 1 1 Garrison Index 1 | . . . . . . . . . . . 1 . . . . . . . . . . . . . . . . . Alert Level 14 | . 1 . 1 . 1 . . . . . . . . . 2 1 . . . . 3 . . 1 . . 3 1 Unreport Threat 31 | . 1 . 1 1 2 2 . . . . 4 . . . 3 1 . . . . 5 1 . 3 1 . 6 . Locate Traps 25 | . 2 . 1 1 2 . . . . . 1 1 . . 1 2 . . . . 3 3 . 1 5 . 2 . Disarm Traps 2 | . . . . . . . . . . . . . . . . . . . . . . . . . . . 2 . Reprogram Traps 11 | . . . . . 1 1 . . . . 1 . . . . . . . . . 2 1 . 1 4 . . . Maintenance Status 2 | . . . . . . . . . . . . . . . . . . . . . . . . . 1 . 1 . Surveillance Status 1 | . . . . . . . . . . . . . . . . . . . . . 1 . . . . . . . Patrol Status 2 | . . . 1 . . . . . . . . . . . . 1 . . . . . . . . . . . . Recall Investigation 8 | . . . . . . . . . . . 1 . . . . 1 . . . . 4 2 . . . . . . Recall Extermination 10 | . . . . . . . . . . . 1 . . . 1 2 . . . . 3 1 . 1 . . 1 . Recall Assault 2 | . . . . . . . . . . . . . . . . 2 . . . . . . . . . . . . Hauler Manifests 7 | . . . 2 1 1 . . . . . . . . . . . . . . . 2 . . . 1 . . . Registered Components 2 | . . . . . . . . . . . 1 . . . . . . . . . . . . . . . . 1 Registered Prototypes 1 | . . . . . . . . . . . . . . . . . . . . . . . . . 1 . . . Zone Layout 26 | . 1 . 2 3 2 3 . . . . 2 1 . . 4 3 . . . . . 2 . . 2 . 1 . Protovariant Controls 1 | . . . . . . . . . . . . . . . . . . . . . . . . . 1 . . . Activate Exoskeleton 1 | . . . . . . . . . . . . . . . . . . . . . . . . . . . . 1 Gate Test 138-A 1 | . . . . . . . . . . . . . . . . . . . . . . . 1 . . . . . Fabricator Hacks 27 | . . . . . . 3 . . . . 3 . . . . 6 . . . . 7 5 . . . 3 . . Network Status 6 | . . . . . . 1 . . . . 1 . . . . 1 . . . . 1 1 . . . 1 . . Load Schematic 9 | . . . . . . 1 . . . . 1 . . . . 2 . . . . 3 1 . . . 1 . . Build 12 | . . . . . . 1 . . . . 1 . . . . 3 . . . . 3 3 . . . 1 . . Repair Station Hacks 97 | . . . . 2 4 2 . . . . 12 . . . . 26 . . . . 22 . . 8 12 . 6 3 Scan Component 49 | . . . . 1 2 1 . . . . 6 . . . . 13 . . . . 10 . . 4 6 . 4 2 Repair 46 | . . . . 1 2 1 . . . . 6 . . . . 13 . . . . 10 . . 4 6 . 2 1 Refit 2 | . . . . . . . . . . . . . . . . . . . . . 2 . . . . . . . Recycling Unit Hacks 12 | . . . . . . . . . . . 2 1 . . . 2 . . . . 2 1 . 4 . . . . Recycle Component 1 | . . . . . . . . . . . . . . . . . . . . . . . . 1 . . . . Process 1 | . . . . . . . . . . . . . . . . . . . . . . . . 1 . . . . Report Inventory 8 | . . . . . . . . . . . 1 1 . . . 2 . . . . 2 1 . 1 . . . . Retrieve Matter 1 | . . . . . . . . . . . . . . . . . . . . . . . . 1 . . . . Retrieve Components 1 | . . . . . . . . . . . 1 . . . . . . . . . . . . . . . . . Scanalyzer 72 | . . . 5 . 6 3 . . . . . . . . . 17 . . . . 5 . . 30 6 . . . Insert Component 32 | . . . 2 . 2 2 . . . . . . . . . 8 . . . . 2 . . 13 3 . . . Analyze 40 | . . . 3 . 4 1 . . . . . . . . . 9 . . . . 3 . . 17 3 . . . Garrison Access Hacks 12 | . . . . . . 2 . . . . 1 . . . 1 2 . . . . 3 . . 1 1 . 1 . Seal Access 12 | . . . . . . 2 . . . . 1 . . . 1 2 . . . . 3 . . 1 1 . 1 . Unauthorized Hacks 174 | . 7 . 9 6 7 8 . . . . 19 6 . . 13 21 . . . . 24 19 . 4 11 1 14 5 Terminals 117 | . 5 . 9 4 5 5 . . . . 8 4 . . 13 12 . . . . 11 8 . 4 10 . 14 5 Track 29 | . . . 2 . . . . . . . . . . . 4 2 . . . . 4 4 . 2 3 . 7 1 Assimilate 31 | . 1 . 3 1 1 2 . . . . 3 3 . . 3 4 . . . . 3 . . . 2 . 3 2 Botnet 37 | . 3 . 3 2 3 2 . . . . 3 . . . 4 4 . . . . 3 2 . 2 3 . 2 1 Disrupt 4 | . . . . . . . . . . . 1 . . . . 1 . . . . . 1 . . 1 . . . Operators 16 | . 1 . 1 1 1 1 . . . . 1 1 . . 2 1 . . . . 1 1 . . 1 . 2 1 Fabricators 33 | . . . . . . 3 . . . . 8 . . . . 3 . . . . 8 9 . . 1 1 . . Report 5 | . . . . . . 1 . . . . 2 . . . . . . . . . 1 1 . . . . . . Prioritize 10 | . . . . . . . . . . . 1 . . . . 2 . . . . 3 3 . . . 1 . . Liberate 13 | . . . . . . 1 . . . . 3 . . . . 1 . . . . 3 4 . . 1 . . . Haulers 5 | . . . . . . 1 . . . . 2 . . . . . . . . . 1 1 . . . . . . Repair Stations . | . . . . . . . . . . . . . . . . . . . . . . . . . . . . . Recycling Units 24 | . 2 . . 2 2 . . . . . 3 2 . . . 6 . . . . 5 2 . . . . . . Monitor 1 | . . . . . . . . . . . . . . . . 1 . . . . . . . . . . . . Reject 7 | . . . . . . . . . . . 1 1 . . . 2 . . . . 2 1 . . . . . . Recyclers 3 | . . . . . . . . . . . 1 . . . . 1 . . . . 1 . . . . . . . Mask 7 | . . . . . . . . . . . 1 1 . . . 2 . . . . 2 1 . . . . . . Tunnel 6 | . 2 . . 2 2 . . . . . . . . . . . . . . . . . . . . . . . Scanalyzers . | . . . . . . . . . . . . . . . . . . . . . . . . . . . . . Garrison Access . | . . . . . . . . . . . . . . . . . . . . . . . . . . . . . Data Cores Recovered . | . . . . . . . . . . . . . . . . . . . . . . . . . . . . . Used . | . . . . . . . . . . . . . . . . . . . . . . . . . . . . . Hacking Detections 144 | . 7 . 10 9 12 12 . . . . 14 6 . . 11 11 . . . . 17 7 . 8 8 1 7 4 Full Trace Events 14 | . . . . 1 1 2 . . . . 2 . . . 1 2 . . . . 3 1 . . . 1 . . Feedback Events . | . . . . . . . . . . . . . . . . . . . . . . . . . . . . . Feedback Blocked . | . . . . . . . . . . . . . . . . . . . . . . . . . . . . . Robot Schematics Acquired 6 | . . . . . . . . . . . . . . . . 1 . . . . 2 . . . 1 . 2 . Robots Built 5 | . . . . . . . . . . . . . . . . . . . . . . 5 . . . . . . Authchips . | . . . . . . . . . . . . . . . . . . . . . . . . . . . . . Time 148 | . . . . . . . . . . . . . . . . . . . . . . 148 . . . . . . Total Robot Build Rating 37 | . . . . . . . . . . . . . . . . . . . . . . 37 . . . . . . Part Schematics Acquired 59 | . 2 . 2 . 2 2 . . . . 1 1 . . 3 10 . . . . 8 . . 16 11 . 1 . Parts Built 10 | . . . . . . 1 . . . . 1 . . . . 3 . . . . 3 1 . . . 1 . . Authchips . | . . . . . . . . . . . . . . . . . . . . . . . . . . . . . Time 518 | . . . . . . 95 . . . . 47 . . . . 62 . . . . 138 139 . . . 37 . . Total Part Build Rating 68 | . . . . . . 5 . . . . 5 . . . . 19 . . . . 21 9 . . . 9 . . Parts Repaired 46 | . . . . 1 2 1 . . . . 6 . . . . 13 . . . . 10 . . 4 6 . 2 1 Time 2394 | . . . . 32 64 16 . . . . 171 . . . . 1139 . . . . 545 . . 119 222 . 58 28 Parts Recycled 1 | . . . . . . . . . . . . . . . . . . . . . . . . 1 . . . . Recycled Matter 122 | . . . . . . . . . . . . . . . . . . . . . . . . 122 . . . . Retrieved Matter 122 | . . . . . . . . . . . . . . . . . . . . . . . . 122 . . . . Retrieved Components 3 | . . . . . . . . . . . 3 . . . . . . . . . . . . . . . . . Parts Scanalyzed 27 | . . . 2 . 2 1 . . . . . . . . . 8 . . . . 2 . . 10 2 . . . Part Schematics Acquired 29 | . . . 2 . 2 1 . . . . . . . . . 8 . . . . 2 . . 11 3 . . . Parts Damaged 5 | . . . 1 . . . . . . . . . . . . . . . . . . . . 4 . . . . Bothacking | -11 -10 -10 -9 -9 -8 -7 -7 -7 -7 -6 -6 -6 -6 -6 -6 -5 -5 -5 -5 -4 -4 -4 -4 -3 -3 -2 -2 -2 ------------ Run | Scr Mat Min Mat Sto Mat Fac Low Low Zio Pro Fac Ext Cet Arc Hub Fac Upp Upp War Pro Fac Arm Lab Res Tes Res Qua Sec Used RIF Installer . | . . . . . . . . . . . . . . . . . . . . . . . . . . . . . Robots Hacked . | . . . . . . . . . . . . . . . . . . . . . . . . . . . . . Non-combat . | . . . . . . . . . . . . . . . . . . . . . . . . . . . . . Combat . | . . . . . . . . . . . . . . . . . . . . . . . . . . . . . Robot Hacks Applied . | . . . . . . . . . . . . . . . . . . . . . . . . . . . . . Relay Couplers Released 2 | . . . . . . . . . . . . . . . . . . . . . . . . . . 2 . . Machine Destruction 2 | . . . . . . . . . . . . . . . . . . . . . . . . . . 2 . . Fabnet Peak Effective % . | . . . . . . . . . . . . . . . . . . . . . . . . . . . . . Robots Rewired 21 | . . . . . . . . . . 1 . 4 . . . . . . 5 . . 11 . . . . . . Allies Hacked 5 | . . . . . . 1 . . . . . . . . . . . . 1 . . 1 . . 2 . . . Hacks Repelled 2 | . . . . . . . . . . . 1 . . . . . . . . . . . . . 1 . . . Allies | -11 -10 -10 -9 -9 -8 -7 -7 -7 -7 -6 -6 -6 -6 -6 -6 -5 -5 -5 -5 -4 -4 -4 -4 -3 -3 -2 -2 -2 -------- Run | Scr Mat Min Mat Sto Mat Fac Low Low Zio Pro Fac Ext Cet Arc Hub Fac Upp Upp War Pro Fac Arm Lab Res Tes Res Qua Sec Total Allies 82 | . 1 2 . 11 1 2 . . . 1 8 12 5 . 1 4 . . 5 . 2 17 . . 5 . 2 3 Largest Group 10 | . 1 3 3 10 6 3 . . . 1 4 7 8 7 4 2 . . 5 1 1 8 8 . 3 . 1 3 Highest-Rated Group 1195 | . 10 51 51 88 50 46 . . . 47 121 330 690 538 327 98 . . 263 49 26 399 399 . 126 . 45 1195 Highest-Rated Ally 1195 | . 10 31 31 16 10 26 . . . 47 47 159 159 96 96 49 . . 65 49 26 82 56 . 42 . 45 1195 Total Orders 87 | . 1 1 . 30 13 9 . . . 1 7 5 . . 4 2 . . . . 6 2 1 . 3 . . 2 STAY 47 | . 1 1 . 17 6 5 . . . 1 4 3 . . 2 1 . . . . 1 1 1 . 2 . . 1 ROAM 1 | . . . . . 1 . . . . . . . . . . . . . . . . . . . . . . . FOLLOW 29 | . . . . 11 2 4 . . . . 3 2 . . 2 1 . . . . 1 1 . . 1 . . 1 EXPLORE 9 | . . . . 2 4 . . . . . . . . . . . . . . . 3 . . . . . . . RETURN 1 | . . . . . . . . . . . . . . . . . . . . . 1 . . . . . . . Ally Attacks 528 | . . . 20 43 31 . . . . . 43 32 79 46 38 20 . . 10 4 . 35 36 . 12 . . 79 Total Damage 19043 | . . . 362 391 253 . . . . . 755 685 2407 1584 1187 683 . . 212 44 . 847 1490 . 475 . . 7668 Kills 114 | . . . 6 8 8 . . . . . 7 5 22 4 11 6 . . 3 1 . 7 2 . 5 . . 19 Allies Corrupted 12 | . . . . . . . . . . . . . . . . 1 . . . . . . 8 . 2 . 1 . Allies Melted . | . . . . . . . . . . . . . . . . . . . . . . . . . . . . . Intel | -11 -10 -10 -9 -9 -8 -7 -7 -7 -7 -6 -6 -6 -6 -6 -6 -5 -5 -5 -5 -4 -4 -4 -4 -3 -3 -2 -2 -2 ------- Run | Scr Mat Min Mat Sto Mat Fac Low Low Zio Pro Fac Ext Cet Arc Hub Fac Upp Upp War Pro Fac Arm Lab Res Tes Res Qua Sec Robot Analysis Total 17 | . . . 1 . 1 . . . . . 1 1 . . 1 2 . . . . 5 . . 1 1 . 3 . Derelict Logs Recovered 9 | . . 1 . . . . 2 1 2 1 . . . . . . . 1 . 1 . . . . . . . . Drone Launches 23 | . . . . 12 8 . . . . . . . . . . . . . . . 3 . . . . . . . Drone Recoveries 10 | . . . . . 8 . . . . . . . . . . . . . . . 2 . . . . . . . Exploration | -11 -10 -10 -9 -9 -8 -7 -7 -7 -7 -6 -6 -6 -6 -6 -6 -5 -5 -5 -5 -4 -4 -4 -4 -3 -3 -2 -2 -2 ------------- Run | Scr Mat Min Mat Sto Mat Fac Low Low Zio Pro Fac Ext Cet Arc Hub Fac Upp Upp War Pro Fac Arm Lab Res Tes Res Qua Sec Turns Passed 50294 | 53 1479 461 2521 2925 3196 3566 2403 2330 1423 2746 2946 1886 788 522 1884 3450 1363 1490 1027 1403 3346 1482 753 672 1281 363 1068 1467 Spaces Moved 28794 | 44 994 288 1224 1386 1730 1434 1257 1099 656 1224 1506 884 267 168 845 1680 952 1015 718 1137 2200 1195 548 602 785 578 1072 1306 Core 2 | 2 . . . . . . . . . . . . . . . . . . . . . . . . . . . . Treads 917 | . 5 . . . 1 . . . . . 905 . . 6 . . . . . . . . . . . . . . Legs 8645 | . . . . . . . . . . . . . . . 534 1680 952 1015 718 1137 2200 403 . . . . . 6 Wheels 13613 | 42 989 288 1224 1386 1729 1434 1257 1099 656 1224 601 884 267 162 311 . . . . . . . . . . . . 60 Hover 5600 | . . . . . . . . . . . . . . . . . . . . . . 792 548 602 785 578 1072 1223 Flight . | . . . . . . . . . . . . . . . . . . . . . . . . . . . . . Fastest Speed 40 | 50 95 125 125 165 120 175 175 190 215 215 145 145 230 240 120 114 114 120 108 108 105 48 48 42 42 40 40 40 Average Speed 136 | 90 124 125 164 165 152 208 182 201 215 215 161 172 244 249 183 128 119 120 115 108 108 75 98 43 45 41 46 54 Slowest Speed 400 | 95 160 125 170 170 400 230 190 215 215 215 215 230 245 275 260 260 120 120 120 108 110 135 152 122 201 105 120 250 Overloaded Moves . | . . . . . . . . . . . . . . . . . . . . . . . . . . . . . Propulsion Burnouts . | . . . . . . . . . . . . . . . . . . . . . . . . . . . . . Robots Hopped . | . . . . . . . . . . . . . . . . . . . . . . . . . . . . . Cave-ins Triggered . | . . . . . . . . . . . . . . . . . . . . . . . . . . . . . Teleports 6 | . . . . . . . . . . . . . . . . . . . . . . . . . . . 2 4 Spacefolds 6 | . . . . . . . . . . . . . . . . . . . . . . . . . . . . 6 Exploration Rate (%) 68 | 3 96 35 79 93 93 32 99 92 84 95 41 74 61 80 63 31 94 94 85 92 54 47 99 20 82 23 82 70 Regions Visited 28 Branch Regions 19 Pre-discovered Areas 12 | . 2 1 . 3 2 . . . 1 1 . . . . . . . 1 . 1 . . . . . . . . Known Exits Taken 24 | . . . 1 . 1 1 1 1 1 1 1 1 1 1 1 1 1 1 1 1 1 1 1 1 1 1 1 . Unknown Exits Taken 4 | 1 1 1 . 1 . . . . . . . . . . . . . . . . . . . . . . . . Scrap Searched 20 | . . . . . . . 4 3 1 2 . . . . . . 2 4 . 4 . . . . . . . . Spaces Dug 459 | . . . 7 11 17 26 20 8 . 2 20 13 . . 36 25 30 30 . 36 66 25 2 20 11 10 30 14 Terrain Destroyed 1900 | . 57 . 20 11 84 39 75 45 . 58 118 13 . 6 441 155 66 84 100 50 66 62 2 42 27 17 138 124 Melee 258 | . . . 4 11 17 26 7 8 . 2 20 13 . . 14 14 . . . 7 52 19 2 4 9 1 14 14 Projectile 163 | . . . . . . . . . . 1 2 . . 6 17 32 15 17 2 . 14 9 . 1 18 7 21 1 AOE 1455 | . 57 . 16 . 67 13 68 37 . 55 96 . . . 410 109 51 67 98 43 . 34 . 37 . . 88 109 Terrain Rammed . | . . . . . . . . . . . . . . . . . . . . . . . . . . . . . Walls Destroyed . | . . . . . . . . . . . . . . . . . . . . . . . . . . . . . Machines Disabled . | . . . . . . . . . . . . . . . . . . . . . . . . . . . . . Actions | -11 -10 -10 -9 -9 -8 -7 -7 -7 -7 -6 -6 -6 -6 -6 -6 -5 -5 -5 -5 -4 -4 -4 -4 -3 -3 -2 -2 -2 --------- Run | Scr Mat Min Mat Sto Mat Fac Low Low Zio Pro Fac Ext Cet Arc Hub Fac Upp Upp War Pro Fac Arm Lab Res Tes Res Qua Sec Total 37256 | 54 1174 380 1576 1858 2067 1768 1328 1166 672 1323 1874 1169 392 235 1097 2751 1143 1254 899 1293 2974 1650 727 939 1539 672 1501 1781 Wait 5192 | . 98 88 195 324 149 127 40 25 . 62 174 191 92 9 159 793 158 187 97 138 579 265 75 234 521 51 244 117 Move 28755 | 43 993 287 1223 1385 1729 1433 1256 1098 655 1223 1505 883 266 167 844 1679 951 1014 717 1136 2199 1194 547 601 784 577 1071 1295 Hop . | . . . . . . . . . . . . . . . . . . . . . . . . . . . . . Pick Up 336 | 5 14 . 16 14 17 22 3 3 7 8 26 11 4 8 4 30 . 4 12 2 14 7 13 13 18 3 19 39 Fast Attach 193 | 5 7 . . 5 3 . . . 1 . 9 4 6 4 8 22 3 3 5 . 14 9 23 13 14 2 10 23 Attach 160 | 1 1 . 5 1 8 11 2 6 1 . 9 8 1 3 1 15 . 1 3 2 4 4 4 5 6 3 11 44 Detach 53 | . 1 . . 1 2 . 1 3 . . 3 3 1 1 . 6 . . . 1 1 1 6 2 3 1 4 12 Swap 608 | . 19 . 44 23 43 46 7 4 1 7 55 9 6 7 22 51 9 13 7 4 32 50 3 17 36 13 35 45 Drop 359 | . 9 . 9 21 5 16 1 1 7 8 24 3 10 10 9 32 2 6 21 . 16 19 33 14 28 6 25 24 Fire 753 | . 32 5 66 15 45 26 4 4 . 6 28 . . 17 30 72 20 26 20 3 16 31 3 29 111 15 56 73 Melee 717 | . . . 18 60 66 87 14 22 . 5 41 36 6 9 18 48 . . . 7 99 39 20 6 18 1 26 71 Ram 6 | . . . . 1 . . . . . . . . . . . . . . . . . . . 5 . . . . Kick 4 | . . . . . . . . . . . . . . . 1 3 . . . . . . . . . . . . Crush 2 | . . . . 2 . . . . . . . . . . . . . . . . . . . . . . . . Escape Stasis 46 | . . . . . . . . . . . . 8 . . . . . . . . . . . . . . . 38 Rewire 63 | . . . . . . . . . . 1 . 13 . . 1 . . . 17 . . 31 . . . . . . Trap 3 | . . . . . . . . . . 3 . . . . . . . . . . . . . . . . . . Miscellaneous 6 | . . . . 6 . . . . . . . . . . . . . . . . . . . . . . . . Route ------- -11/Scrapyard -10/Materials (discovered 5 exits: *Mat x3 / [*Min x2]) -10/Mines -9/Materials (discovered 5 exits: *Mat x2 / *Min / *Sto x2) -9/Storage -8/Materials (discovered 3 exits: *Fac x3) -7/Factory (discovered 3 exits: *Fac / *Low x2) -7/Lower Caves -7/Lower Caves (discovered 2 exits: *Fac / *Zio) -7/Zion -6/Proximity Caves -6/Factory (discovered 6 exits: *Fac x2 / *Low x2 / *Ext x2) -6/Extension (discovered 2 exits: *Fac / *Cet) -6/Cetus -6/Archives (discovered 3 exits: *Fac / *Hub x2) -6/Hub_04(d) (discovered 4 exits: *Fac x4) -5/Factory (discovered 2 exits: *Upp x2) -5/Upper Caves -5/Upper Caves (discovered 2 exits: *Fac / *War) -5/Warlord -4/Proximity Caves -4/Factory (discovered 6 exits: *Res x3 / Upp x2 / *Arm) -4/Armory (discovered 2 exits: Res / *Lab) -4/Lab -3/Research (discovered 5 exits: *Res x3 / *Tes x2) -3/Testing -2/Research (discovered 2 exits: *Acc / *Qua) -2/Quarantine (discovered 2 exits: *Acc / *Sec) -2/Section 7 (discovered 1 exit: *Acc) History --------- Turn | Location | Event 21 | -11/Scrapyard | Discovered new exit (range 15) 54 | -11/Scrapyard | Entered Materials 205 | -10/Materials | Discovered new exit (range 8) 313 | -10/Materials | Build established: Mutant 487 | -10/Materials | Discovered new exit (range 7) 518 | -10/Materials | Central database locked down 737 | -10/Materials | Discovered new exit (range 7) 790 | -10/Materials | Discovered new exit (range 12) 1062 | -10/Materials | Discovered new exit (range 14) 1233 | -10/Materials | Core integrity fell below 50% 1533 | -10/Materials | Entered Mines 1533 | -10/Mines | Accompanied by 1 ally 1569 | -10/Mines | Discovered new exit (range 5) 1637 | -10/Mines | Learned location of Storage (-9) 1819 | -10/Mines | Learned Materials trap positions 1821 | -10/Mines | Assembled infested the area 1826 | -10/Mines | Assisted by a Guerilla fighting off Assembled 1994 | -10/Mines | Entered Materials 1994 | -9/Materials | Accompanied by 3 allies 1994 | -9/Materials | Evolved 2 slots: Utility x2 1994 | -9/Materials | Discovered new exit (range 15) 1995 | -9/Materials | Loaded intel: 13 trap records 1999 | -9/Materials | Led the pair of lost Derelicts to an unsafe place 2205 | -9/Materials | Discovered new exit (range 11) 2703 | -9/Materials | Discovered new exit (range 8) 3185 | -9/Materials | Identified exit to Mines 3185 | -9/Materials | Identified exit to Storage 3376 | -9/Materials | Discovered new exit (range 9) 4515 | -9/Materials | Entered Storage 4544 | -9/Storage | Learned location of Armory (-4) 4957 | -9/Storage | Repaired Med. Armor Plating 5390 | -9/Storage | Assisted by bots powering up and referring to "LRC-V3" 5535 | -9/Storage | Discovered new exit (range 13) 5700 | -9/Storage | Build established: Commander-Mutant 7440 | -9/Storage | Entered Materials 7440 | -8/Materials | Accompanied by 17 allies 7440 | -8/Materials | Evolved 2 slots: Propulsion x1, Utility x1 7746 | -8/Materials | Lost 3 parts (2n1w) 7882 | -8/Materials | Repaired Med. Armor Plating 7920 | -8/Materials | Repaired Med. Armor Plating 7997 | -8/Materials | Build established: Skirmisher 8335 | -8/Materials | Build established: Assassin 8790 | -8/Materials | Discovered new exit (range 16) 8998 | -8/Materials | Discovered new exit (range 15) 9003 | -8/Materials | Build established: Mutant 9163 | -8/Materials | Central database locked down 9869 | -8/Materials | Discovered new exit (range 16) 9969 | -8/Materials | Build established: Assassin 10634 | -8/Materials | Identified exit to Factory 10636 | -8/Materials | Entered Factory 10636 | -7/Factory | Accompanied by 1 ally 10636 | -7/Factory | Evolved 2 slots: Utility x2 10723 | -7/Factory | Repaired Med. Armor Plating? 11207 | -7/Factory | Destroyed 7 combat bots 11244 | -7/Factory | Lost 4 parts (1n2u1w) 11556 | -7/Factory | Discovered new exit (range 15) 11609 | -7/Factory | Identified exit to Factory 11887 | -7/Factory | Build established: Hacker-Assassin 13058 | -7/Factory | Fabricated Imp. Hacking Suite (x1) 13483 | -7/Factory | Build established: Hacker-Skirmisher 13689 | -7/Factory | Core integrity fell below 50% 13960 | -7/Factory | Identified exit to Lower Caves 14202 | -7/Factory | Entered Lower Caves 14249 | -7/Lower Caves | Build established: Hacker-Assassin 14396 | -7/Lower Caves | Learned Factory terminal intel 16276 | -7/Lower Caves | Identified exit to Lower Caves 16605 | -7/Lower Caves | Entered another Lower Caves area 16745 | -7/Lower Caves | Discovered exit to Factory (range 14) 17845 | -7/Lower Caves | Lost 4 parts (1p2n1u) 17925 | -7/Lower Caves | Build established: Assassin 18094 | -7/Lower Caves | Learned Factory trap positions 18579 | -7/Lower Caves | Acquired the password to a Derelict Tinkerer's latest research 18594 | -7/Lower Caves | Found Prototype Special Weapon 18609 | -7/Lower Caves | Identified Molecular Deconstructor 18903 | -7/Lower Caves | Discovered new exit (range 5) 18910 | -7/Lower Caves | Identified exit to Zion 18935 | -7/Lower Caves | Entered Zion 18964 | -7/Zion | Found CR-A16's Pointy Stick 19047 | -7/Zion | System corruption cleaned by Quarantine Array 19099 | -7/Zion | Discovered new exit (range 14) 19931 | -7/Zion | Learned location of Warlord (-5) 19994 | -7/Zion | Learned Factory non-interactive machine intel 20186 | -7/Zion | Found Prototype Special Weapon 20189 | -7/Zion | Found Prototype Special Weapon 20193 | -7/Zion | Found Prototype Special Weapon 20197 | -7/Zion | Found Prototype Special Weapon 20231 | -7/Zion | Identified RU-N14's Throwing Claymores (x4) 20356 | -7/Zion | Identified exit to Proximity Caves 20358 | -7/Zion | Entered Proximity Caves 22315 | -6/Proximity Caves | Discovered exit to Factory (range 17) 23104 | -6/Proximity Caves | Entered Factory 23104 | -6/Factory | Accompanied by 1 ally 23104 | -6/Factory | Evolved 2 slots: Propulsion x1, Utility x1 23105 | -6/Factory | Loaded intel: 92 trap records 23106 | -6/Factory | Loaded intel: 194 non-interactive machine locations 23107 | -6/Factory | Loaded intel: 27 terminal locations 23548 | -6/Factory | Repaired Lgt. Nuclear Core 23590 | -6/Factory | Repaired Shock Maul 23636 | -6/Factory | Discovered new exit (range 10) 23664 | -6/Factory | Identified exit to Lower Caves 23725 | -6/Factory | Build established: Hacker-Assassin 23740 | -6/Factory | Identified exit to Extension 23773 | -6/Factory | Discovered new exit (range 7) 23783 | -6/Factory | Identified exit to Factory 23938 | -6/Factory | Repaired Shock Maul? 24431 | -6/Factory | Discovered exit to Factory (range 12) 25081 | -6/Factory | Build established: Hacker-Mutant 25255 | -6/Factory | Spotted B-75 Beast 25274 | -6/Factory | Repaired Imp. Medium Treads? 25299 | -6/Factory | Revealed the true nature of CR-A16's Pointy Stick 25302 | -6/Factory | Destroyed B-75 Beast 25330 | -6/Factory | Lost 5 parts (1p2n2u) 25388 | -6/Factory | Repaired Imp. Medium Treads 25411 | -6/Factory | Repaired Imp. Cooling System 25753 | -6/Factory | Fabricated Imp. System Shield (x1) 25796 | -6/Factory | Cargo convoy interrupted 26050 | -6/Factory | Entered Extension 26140 | -6/Extension | Build established: Hacker-Assassin 26721 | -6/Extension | Rescued a captive Derelict 26899 | -6/Extension | Spotted B-75 Beast 27119 | -6/Extension | Lost 3 parts (1p1n1u) 27119 | -6/Extension | Spotted B-75 Beast 27122 | -6/Extension | Core integrity fell below 50% 27126 | -6/Extension | Destroyed B-75 Beast 27223 | -6/Extension | Destroyed B-75 Beast 27520 | -6/Extension | Rescued a captive Derelict 27569 | -6/Extension | Rescued a captive Derelict 27592 | -6/Extension | Rescued A7 27786 | -6/Extension | Rescued a captive Derelict 27787 | -6/Extension | Rescued a captive Derelict 27873 | -6/Extension | Build established: Hacker-Mutant 27888 | -6/Extension | Discovered exit to Factory (range 10) 27890 | -6/Extension | Discovered new exit (range 6) 27933 | -6/Extension | Identified exit to Cetus 27936 | -6/Extension | Entered Cetus 27936 | -6/Cetus | Accompanied by 7 allies (A7) 27941 | -6/Cetus | Acquired a Cetus Manufacturing Module code from A7 27968 | -6/Cetus | Spotted Cetus Guard 27968 | -6/Cetus | Spotted Cetus Guard 27971 | -6/Cetus | Spotted Cetus Guard 27972 | -6/Cetus | Spotted Cetus Guard 27991 | -6/Cetus | Allies destroyed Cetus Guard 27995 | -6/Cetus | Allies destroyed Cetus Guard 27996 | -6/Cetus | Allies destroyed Cetus Guard 28004 | -6/Cetus | Allies destroyed Cetus Guard 28127 | -6/Cetus | Started Cetus Manufacturing Module 28145 | -6/Cetus | Escorted A7 to Cetus Mainframe 28152 | -6/Cetus | Manufactured an Enhanced Grunt 28177 | -6/Cetus | Manufactured an Enhanced Grunt 28202 | -6/Cetus | Manufactured an Enhanced Grunt 28227 | -6/Cetus | Manufactured an Enhanced Grunt 28252 | -6/Cetus | Manufactured an Enhanced Grunt 28420 | -6/Cetus | Discovered new exit (range 16) 28529 | -6/Cetus | Build established: Commander-Mutant 28674 | -6/Cetus | Destroyed A7 28686 | -6/Cetus | Found Prototype Protection 28686 | -6/Cetus | Identified Med. Regenerative Plating 28720 | -6/Cetus | Identified exit to Archives 28724 | -6/Cetus | Entered Archives 28724 | -6/Archives | Accompanied by 7 allies 28796 | -6/Archives | Found Prototype Device 28797 | -6/Archives | Identified Exp. Thermal Shield 28822 | -6/Archives | Discovered new exit (range 15) 28935 | -6/Archives | Discovered new exit (range 15) 28976 | -6/Archives | Discovered exit to Factory (range 15) 29122 | -6/Archives | Build established: Scavenger-Assassin 29244 | -6/Archives | Identified exit to Hub_04(d) 29246 | -6/Archives | Entered Hub_04(d) 29246 | -6/Hub_04(d) | Accompanied by 4 allies 29677 | -6/Hub_04(d) | Build established: Hacker-Assassin 30941 | -6/Hub_04(d) | Found Powered Armor 31076 | -6/Hub_04(d) | Network Hub disabled 31125 | -6/Hub_04(d) | Network Hub disabled 31130 | -6/Hub_04(d) | Entered Factory 31130 | -5/Factory | Evolved 2 slots: Propulsion x1, Utility x1 31131 | -5/Factory | Identified exit to Upper Caves 31617 | -5/Factory | Build established: Scavenger-Mutant 31668 | -5/Factory | Fabricated Adv. Hacking Suite (x1) 31691 | -5/Factory | Fabricated Lrn. Sensor Array (x1) 31891 | -5/Factory | Repaired Enh. Flexi-carbon Leg? 31978 | -5/Factory | Build established: Hacker-Mutant 32029 | -5/Factory | Repaired Enh. Flexi-carbon Leg 32119 | -5/Factory | Repaired Enh. Flexi-carbon Leg 32195 | -5/Factory | Repaired Quantum Reactor 32306 | -5/Factory | Repaired Centrium Medium Armor Plating? 32413 | -5/Factory | Repaired Antimatter Cannon? 32581 | -5/Factory | Build established: Hacker-Assassin 32586 | -5/Factory | Repaired Enh. Flexi-carbon Leg 32876 | -5/Factory | Repaired Shock Maul 33168 | -5/Factory | Garrison activated, responded to threat 33343 | -5/Factory | Lost 3 parts (2n1u) 33345 | -5/Factory | Destroyed 9 combat bots 33500 | -5/Factory | Build established: Hacker-Mutant 33672 | -5/Factory | Repaired Enh. Flexi-carbon Leg 33763 | -5/Factory | Repaired Enh. Flexi-carbon Leg 33830 | -5/Factory | First assault squad dispatched 33877 | -5/Factory | Repaired Centrium Medium Armor Plating? 34011 | -5/Factory | Repaired Adv. Gravity Neutralizer? 34269 | -5/Factory | Lost 4 parts (4u) 34432 | -5/Factory | Fabricated Adv. Hacking Suite (x1) 34456 | -5/Factory | Repaired Adv. System Restoration Module? 34580 | -5/Factory | Entered Upper Caves 34625 | -5/Upper Caves | Build established: Scavenger-Mutant 34889 | -5/Upper Caves | Learned Factory garrison access intel 34889 | -5/Upper Caves | Learned Research garrison access intel 35031 | -5/Upper Caves | Build established: Scavenger-Skirmisher 35468 | -5/Upper Caves | Build established: Scavenger-Mutant 35728 | -5/Upper Caves | Discovered new exit (range 12) 35940 | -5/Upper Caves | Attacked by a faux Warlord 35942 | -5/Upper Caves | Identified exit to Upper Caves 35943 | -5/Upper Caves | Entered another Upper Caves area 35985 | -5/Upper Caves | Discovered new exit (range 12) 35999 | -5/Upper Caves | Identified exit to Factory 36792 | -5/Upper Caves | Encountered a Warlord checkpoint 37188 | -5/Upper Caves | Discovered new exit (range 13) 37432 | -5/Upper Caves | Identified exit to Warlord 37433 | -5/Upper Caves | Entered Warlord 37599 | -5/Warlord | Received a Watcher feed algorithm from an ecstatic Tinkerer 37655 | -5/Warlord | Build established: Scavenger-Skirmisher 37890 | -5/Warlord | Met Warlord 37915 | -5/Warlord | Warlord's base attacked by MAIN.C 37936 | -5/Warlord | Found Prototype Device 37939 | -5/Warlord | Found Prototype Processor 37942 | -5/Warlord | Identified System Purifier 37944 | -5/Warlord | Found Prototype Hackware 38041 | -5/Warlord | Identified Spectral Analyzer 38045 | -5/Warlord | Found Prototype Reactor 38088 | -5/Warlord | Identified Vortex Chain Reactor 38089 | -5/Warlord | Identified System Mapper 38226 | -5/Warlord | Build established: Scavenger-Mutant 38264 | -5/Warlord | Found Prototype Energy Cannon 38264 | -5/Warlord | Identified Vortex Cannon 38265 | -5/Warlord | Warlord forces counterattacked 38363 | -5/Warlord | Spotted Executioner 38406 | -5/Warlord | Discovered new exit (range 14) 38415 | -5/Warlord | Destroyed 9 combat bots 38415 | -5/Warlord | Spotted Striker 38438 | -5/Warlord | Destroyed Striker 38450 | -5/Warlord | Identified exit to Proximity Caves 38460 | -5/Warlord | Entered Proximity Caves 38460 | -4/Proximity Caves | Accompanied by 1 ally 38463 | -4/Proximity Caves | Destroyed 12 combat bots 38743 | -4/Proximity Caves | Build established: Scavenger-Assassin 38933 | -4/Proximity Caves | Learned location of Testing (-3) 39766 | -4/Proximity Caves | Discovered exit to Factory (range 5) 39863 | -4/Proximity Caves | Entered Factory 39863 | -4/Factory | Evolved 2 slots: Power x1, Utility x1 39864 | -4/Factory | Loaded intel: 4 garrison access locations 40056 | -4/Factory | Discovered new exit (range 7) 40062 | -4/Factory | Identified exit to Research 40444 | -4/Factory | Identified exit to Upper Caves 40444 | -4/Factory | Identified exit to Armory 40580 | -4/Factory | Found Prototype Processor 40667 | -4/Factory | Repaired Centrium Medium Armor Plating? 40685 | -4/Factory | Build established: Wizard-Assassin 40695 | -4/Factory | Repaired Myomer Leg 40741 | -4/Factory | Repaired Enh. Flexi-carbon Leg 40773 | -4/Factory | Repaired Lrn. Sensor Array? 41183 | -4/Factory | Repaired System Purifier? 41226 | -4/Factory | Identified Exp. Signal Interpreter 41320 | -4/Factory | Repaired Exp. Signal Interpreter 41362 | -4/Factory | Repaired Prc. Rocket Launcher? 41428 | -4/Factory | Repaired Enh. Biometal Leg 41483 | -4/Factory | Repaired Enh. Biometal Leg 41625 | -4/Factory | Fabricated Exp. Hacking Suite? 42479 | -4/Factory | Repaired Shock Maul 42565 | -4/Factory | Fabricated Exp. Terrain Scan Processor? 42674 | -4/Factory | Discovered exit to Research (range 13) 42744 | -4/Factory | Discovered exit to Research (range 23) 42847 | -4/Factory | Fabricated Exp. System Shield (x1) 42946 | -4/Factory | Central database locked down 43209 | -4/Factory | Entered Armory 43776 | -4/Armory | Fabricated Enh. Nova Cannon (x1) 44262 | -4/Armory | Fabricated G-67 Veteran (x3) 44349 | -4/Armory | Discovered exit to Research (range 14) 44354 | -4/Armory | Found Enh. Force Lance 44355 | -4/Armory | Discovered new exit (range 16) 44448 | -4/Armory | Found Enh. Force Lance 44619 | -4/Armory | Fabricated P-80 Master (x2) 44639 | -4/Armory | Build established: Hacker-Mutant 44642 | -4/Armory | Found Fusion Bomb Launcher 44678 | -4/Armory | Identified exit to Lab 44691 | -4/Armory | Entered Lab 44691 | -4/Lab | Accompanied by 8 allies 44695 | -4/Lab | Discovered exit to Research (range 9) 44701 | -4/Lab | Unable to decrypt terminal 44711 | -4/Lab | Unable to decrypt terminal 44739 | -4/Lab | Detected for breach 44743 | -4/Lab | Gained access to the hidden lab's interior 44746 | -4/Lab | Found Alien Artifact 44750 | -4/Lab | Disabled Active System Cloaker 44823 | -4/Lab | Confronted by A5 44832 | -4/Lab | Destroyed A5 44835 | -4/Lab | Found Med. Regenerative Plating 44851 | -4/Lab | Found Alien Artifact 44858 | -4/Lab | Found Alien Artifact 44864 | -4/Lab | Found Alien Artifact 44876 | -4/Lab | Found Prototype Energy Cannon 44876 | -4/Lab | Identified Warp Cannon 44879 | -4/Lab | Found Prototype Energy Cannon 44879 | -4/Lab | Identified Potential Cannon 44888 | -4/Lab | Found Prototype Protection 44888 | -4/Lab | Identified Exp. Powered Armor 44920 | -4/Lab | Found Prototype Hackware 45013 | -4/Lab | Identified Core Reset Matrix 45013 | -4/Lab | Identified Transdimensional Reconstructor 45013 | -4/Lab | Identified Core Regenerator 45013 | -4/Lab | Identified Integrated Reactor 45013 | -4/Lab | Used Core Reset Matrix 45014 | -4/Lab | Installed Integrated Reactor, increased core energy generation (+10) 45406 | -4/Lab | Unable to decrypt terminal 45444 | -4/Lab | Entered Research 45444 | -3/Research | Evolved 2 slots: Propulsion x1, Utility x1 45459 | -3/Research | Identified Quantum Router 45471 | -3/Research | Identified exit to Testing 45480 | -3/Research | Found Unknown Device 45534 | -3/Research | Identified Antimissile System 45553 | -3/Research | Discovered new exit (range 22) 45649 | -3/Research | Repaired Broken Cmb. Linear Gravjet 45715 | -3/Research | Repaired System Purifier 45808 | -3/Research | Repaired Prc. Energy Filter 45837 | -3/Research | Build established: Wizard-Scout 45975 | -3/Research | Repaired Lrn. Terrain Scanner 46049 | -3/Research | Central database locked down 46094 | -3/Research | Discovered new exit (range 17) 46107 | -3/Research | Discovered new exit (range 24) 46116 | -3/Research | Intercept squad dispatched 46116 | -3/Research | Entered Testing 46138 | -3/Testing | Found Prototype Ballistic Cannon 46138 | -3/Testing | Identified Perforator 46188 | -3/Testing | Identified exit to Research 46209 | -3/Testing | Found Prototype Energy Gun 46209 | -3/Testing | Identified Hyp. EM Gauss Rifle 46297 | -3/Testing | Repaired Broken System Purifier 46343 | -3/Testing | Repaired Broken Quantum Shading Machine 46447 | -3/Testing | Found Prototype Energy Cannon 46447 | -3/Testing | Identified Disintegrator 46555 | -3/Testing | Found Exp. EM Disruption Field 46639 | -3/Testing | Found Prototype Device 46642 | -3/Testing | Identified Exp. Focal Shield 46655 | -3/Testing | Found Prototype Energy Cannon 46655 | -3/Testing | Identified Cld. Nova Cannon 46732 | -3/Testing | Repaired Com. Particle Reactor 46770 | -3/Testing | Repaired System Purifier 46983 | -3/Testing | Intercept squad dispatched 46991 | -3/Testing | Spotted Tracker 46993 | -3/Testing | Destroyed Tracker 46994 | -3/Testing | Spotted Tracker 46999 | -3/Testing | Destroyed Tracker 47009 | -3/Testing | Spotted Combat Programmer 47013 | -3/Testing | Spotted Combat Programmer 47041 | -3/Testing | Destroyed Combat Programmer 47053 | -3/Testing | Destroyed Combat Programmer 47076 | -3/Testing | Build established: Wizard-Mutant 47098 | -3/Testing | Found Portable AFG 47312 | -3/Testing | Repaired Cld. Antigrav System? 47343 | -3/Testing | Repaired Cmb. Linear Gravjet 47397 | -3/Testing | Entered Research 47397 | -2/Research | Warlord forces began assault on 0b10 47397 | -2/Research | Evolved 2 slots: Utility x1, Weapon x1 47416 | -2/Research | Discovered new exit (range 19) 47455 | -2/Research | Fabricated Vortex Chain Reactor (x1) 47507 | -2/Research | Research machine network offline 47528 | -2/Research | Identified exit to Access 47696 | -2/Research | Met up with Warlord 47754 | -2/Research | Discovered new exit (range 15) 47759 | -2/Research | Identified exit to Quarantine 47760 | -2/Research | Entered Quarantine 47761 | -2/Quarantine | Detected hypermatrix surge 47761 | -2/Quarantine | Sensed 17 artifacts in vicinity 47801 | -2/Quarantine | Spotted Alpha 7 47846 | -2/Quarantine | Destroyed Alpha 7 47863 | -2/Quarantine | Found Sigix Terminator 47950 | -2/Quarantine | Met incapacitated Sigix Warrior 47950 | -2/Quarantine | Lockdown squad dispatched 47952 | -2/Quarantine | Acquired the access code to the Sigix quarantine chamber 47953 | -2/Quarantine | Unlocked Sigix quarantine chamber 48104 | -2/Quarantine | Discovered exit to Access (range 22) 48112 | -2/Quarantine | Found Core Stripper 48146 | -2/Quarantine | Repaired Antigrav Array 48184 | -2/Quarantine | Repaired Cld. Antigrav System 48288 | -2/Quarantine | Found Phase Redirector 48332 | -2/Quarantine | Found Hpw. Transdimensional Reconstructor 48336 | -2/Quarantine | Found Hpw. Transdimensional Reconstructor 48342 | -2/Quarantine | Found Dimensional Node Initializer 48342 | -2/Quarantine | Initialized slip node 48376 | -2/Quarantine | Found Subatomic Replicator 48384 | -2/Quarantine | Found Sigix Broadsword 48394 | -2/Quarantine | Intercept squad dispatched 48402 | -2/Quarantine | Spotted Tracker 48402 | -2/Quarantine | Spotted Tracker 48402 | -2/Quarantine | Warped through subspace to slip node 48407 | -2/Quarantine | Found Transdimensional Reconstructor 48467 | -2/Quarantine | Warped through subspace to slip node 48472 | -2/Quarantine | Found Hpw. Transdimensional Reconstructor 48751 | -2/Quarantine | Spotted Fortress 48764 | -2/Quarantine | Destroyed Fortress 48771 | -2/Quarantine | Found Prototype Device 48771 | -2/Quarantine | Identified Exp. Force Field 48774 | -2/Quarantine | Found Prototype Device 48774 | -2/Quarantine | Identified Thermal Barrier 48811 | -2/Quarantine | Discovered new exit (range 19) 48818 | -2/Quarantine | Identified exit to Section 7 48828 | -2/Quarantine | Entered Section 7 48828 | -2/Section 7 | Accompanied by 1 ally 48829 | -2/Section 7 | Sensed 21 artifacts in vicinity 49045 | -2/Section 7 | Found Integrated Mediator 49045 | -2/Section 7 | Installed Integrated Mediator, increased core attachment efficiency. 49080 | -2/Section 7 | Repaired Broken Lrn. Terrain Scanner 49118 | -2/Section 7 | Used Core Regenerator, restored core integrity (+362) 49121 | -2/Section 7 | Found Spacefold Activator 49132 | -2/Section 7 | Spotted S7 Guard 49137 | -2/Section 7 | Found Core Membrane 49143 | -2/Section 7 | Installed Core Membrane, gained immunity to corruption 49197 | -2/Section 7 | Found Integrated Dissipator 49197 | -2/Section 7 | Installed Integrated Dissipator, increased core heat dissipation (+20) 49203 | -2/Section 7 | Discovered exit to Access (range 18) 49232 | -2/Section 7 | Spotted Executioner 49232 | -2/Section 7 | Spotted Executioner 49253 | -2/Section 7 | Spotted B-99 Colossus 49442 | -2/Section 7 | Intercept squad dispatched 49453 | -2/Section 7 | Spotted Tracker 49453 | -2/Section 7 | Spotted Tracker 49454 | -2/Section 7 | Warped through subspace 49454 | -2/Section 7 | Spotted Combat Programmer 49454 | -2/Section 7 | Spotted Combat Programmer 49463 | -2/Section 7 | Destroyed Combat Programmer 49476 | -2/Section 7 | Warped through subspace 49476 | -2/Section 7 | Spotted Alpha 7 49477 | -2/Section 7 | Spotted Alpha 7 49587 | -2/Section 7 | Build established: Alien-Mutant 49587 | -2/Section 7 | Spotted S7 Guard 49612 | -2/Section 7 | Core integrity fell below 50% 49618 | -2/Section 7 | Destroyed Alpha 7 49623 | -2/Section 7 | Found Prototype Device 49623 | -2/Section 7 | Identified Exp. ECM Suite 49626 | -2/Section 7 | Found Prototype Processor 49626 | -2/Section 7 | Identified Exp. Target Analyzer 49630 | -2/Section 7 | Found Prototype Energy Gun 49630 | -2/Section 7 | Identified Enh. Gamma Rifle 49648 | -2/Section 7 | Lost 4 parts (1p1n1u1w) 49740 | -2/Section 7 | Destroyed Combat Programmer 49748 | -2/Section 7 | Found Exp. Focal Shield 49759 | -2/Section 7 | Found Prototype Energy Cannon 49759 | -2/Section 7 | Identified EMDS 49807 | -2/Section 7 | Used Subatomic Replicator to replicate LRC Storage 49808 | -2/Section 7 | Found LRC Storage 49808 | -2/Section 7 | Installed LRC Storage, increased inventory capacity (+2) 49810 | -2/Section 7 | Installed LRC Storage, increased inventory capacity (+2) 49832 | -2/Section 7 | Found Integrity Redistributor 49833 | -2/Section 7 | Found Integrity Redistributor 49834 | -2/Section 7 | Found Integrity Redistributor 49864 | -2/Section 7 | Spotted Executioner 49867 | -2/Section 7 | Spotted Executioner 49908 | -2/Section 7 | Found Transdimensional Reconstructor 49910 | -2/Section 7 | Found Transdimensional Reconstructor 49950 | -2/Section 7 | Activated Sigix Exoskeleton 49950 | -2/Section 7 | Received instructions from Sigix Warrior 49958 | -2/Section 7 | Destroyed Executioner 49960 | -2/Section 7 | Destroyed Executioner 49973 | -2/Section 7 | Spotted Striker 49973 | -2/Section 7 | Spotted Striker 49988 | -2/Section 7 | Destroyed Striker 49992 | -2/Section 7 | Destroyed Striker 50006 | -2/Section 7 | Intercept squad dispatched 50013 | -2/Section 7 | Spotted Tracker 50013 | -2/Section 7 | Spotted Tracker 50014 | -2/Section 7 | Spotted Tracker 50020 | -2/Section 7 | Fired Sigix Terminator 50020 | -2/Section 7 | Destroyed Tracker 50020 | -2/Section 7 | Destroyed Tracker 50020 | -2/Section 7 | Destroyed Tracker 50020 | -2/Section 7 | Destroyed Executioner 50020 | -2/Section 7 | Destroyed Executioner 50020 | -2/Section 7 | Spotted Executioner 50027 | -2/Section 7 | Allies destroyed Executioner 50030 | -2/Section 7 | Spotted Combat Programmer 50030 | -2/Section 7 | Spotted Combat Programmer 50033 | -2/Section 7 | Spotted Combat Programmer 50039 | -2/Section 7 | Allies destroyed Combat Programmer 50041 | -2/Section 7 | Destroyed 17 combat bots 50053 | -2/Section 7 | Destroyed Combat Programmer 50056 | -2/Section 7 | Destroyed Combat Programmer 50077 | -2/Section 7 | Lost 6 parts (1p3n2u) 50079 | -2/Section 7 | Found Corrupted Prototype Processor 50107 | -2/Section 7 | Spotted Striker 50108 | -2/Section 7 | Identified Exp. Targeting Computer 50115 | -2/Section 7 | Spotted Investigator 50119 | -2/Section 7 | Warped through subspace 50146 | -2/Section 7 | Sigix Exoskeleton integrity reduced to 80% 50147 | -2/Section 7 | Lost 7 parts (1p4n2u) 50167 | -2/Section 7 | Sigix Exoskeleton integrity reduced to 60% 50182 | -2/Section 7 | Allies destroyed Striker 50186 | -2/Section 7 | Sigix Exoskeleton integrity reduced to 40% 50189 | -2/Section 7 | Allies destroyed Investigator 50207 | -2/Section 7 | Found Prototype Launcher 50215 | -2/Section 7 | Allies destroyed Alpha 7 50247 | -2/Section 7 | Spotted Investigator 50247 | -2/Section 7 | Spotted Striker 50252 | -2/Section 7 | Sigix Exoskeleton integrity reduced to 20% 50258 | -2/Section 7 | Spotted Executioner 50258 | -2/Section 7 | Identified Containment Facilitator 50259 | -2/Section 7 | Spotted Striker 50264 | -2/Section 7 | Warped through subspace 50265 | -2/Section 7 | Core integrity fell below 20% 50275 | -2/Section 7 | Destroyed 9 combat bots 50277 | -2/Section 7 | Destroyed Investigator 50278 | -2/Section 7 | Allies destroyed Striker 50285 | -2/Section 7 | Spotted Executioner 50285 | -2/Section 7 | Used Integrity Redistributor, redistributed integrity to core (+71) 50295 | -2/Section 7 | Destroyed by S7 Guard with Long-range Phase Cannon Last Messages --------------- 50283_ Slug penetrates Reinforced Barrier. 50284_ Stasis bubble strength at 55. 50285_ Integrity redistributed to core (+71). 50286_ Quantum Shading Machine destroyed. 50286_ Core Membrane filtered system corruption (1). 50286_ Stasis bubble strength at 45. 50287_ Stasis bubble strength at 35. 50288_ Stasis bubble strength at 25. 50289_ Stasis bubble strength at 15. 50290_ Stasis bubble strength at 5. 50291_ Stasis bubble bursts. 50292_ Lgt. Quantum Reactor destroyed. 50292_ Critical hit (Impale). 50292_ Biometal Leg destroyed. 50293_ Slug penetrates Wall. 50294_ Com. Wheel destroyed. 50294_ Penetrated by Slug. 50295_ Spacefolded through Wall. 50295_ S7 Guard springs to life. 50295_ Lrn. Sensor Array destroyed. Map ----- +----------------------------------------------------+ | # ###?###?#??## #? """""" #####" "" | | # #??####?###?# #?"""""""" #####" | | # ############# # """""" #?###" % % | | # # #####" *% """ | | + # """""" #####" !%% "?" | | # + """""""" ?#####" %!%""" | | *+ # """""" ?####" ! | | ! # #####+########### #?###" =%* | | =# # ##??### #####" != = | | / + """ """ #?#?#?? ! #####" ! % | | #### """ """ ####### * ! #####" ![ * | | #+#### """ """ #???????################" ! | | | # #### #??#?###?###?######?#?##" [!""" | | # #?## #??#???#??#?############ """ | | " #?##% #?????#??#####?#######?#" """ | | # #### #?????#??##??##??#######"" | | # #####+#+######???#?????#??????##?#?##""" | | # ###?# ?###????????????#????#?#######""" """ | | + ? ??????????????????###?#?######""" "?" | | # ?? ???#????????????##""########!# """ | | # ? ?????????????????# ! =![!%!* | | / ????????????????# !=*=!/%]" | | # ? ???????????????# !!==[ |=/ | | # ??? ? ???????????##??#% |!% / | | # ######+???????????####;### ####" # | | # ###? ?????w?????#"Y @ # #######""" | | # ### ???????????#"" ; #???#?#"" | | + "???????????#""" + #######" | | ##### "?"??????????#""" # ###??##" [ | | ###?# ?"??????????#""!" # #???###" | | ##### "??????????#"""" # #???#?# """ " | | ##?#?? ?????????#""" # #???### """"" | | ##### ? ????????????######## #?????############ | | ? + ? ??????????????????# #?##??#######?#### | | ####? ? ??????????????????# #??????####?###### | | ##### ? ??????????????????# #???########?#?### | | ####?? ????????????????????# #?#?#?#######?#?## | | ###?# ?????????????????????# ##?#????####?##### | | ##??#??????????????????????# #?#??########?#### | | ##??# ?????????????????????# ###?#?##?#?####?## | | ####???????????????????????# ##?############### | | #?#????????????????????????# #?#?##?######?#### | | ##?????????????????????????# #?#??#?###?####### | | #?????????????????????!????# #?#?#?#?####?##### | | ? ????????????????????????# #?##??#??######?## | | ???????????????????????????# ##?#??##?#?###### | | ????????!??????????????????# ####?##??#####" "" | | ???????????????????????????? #??#?##?####?#" | | ???????????????????????????? ##?####?######" | | ???????????????????????????? ##???###?##?##"""" | +----------------------------------------------------+ Best States ------------- Heat Dissipation 107 Coolant Potential 220 Energy Generation 65 Energy Capacity 1300 Matter Stores 300 Matter Capacity 300 Sight Range 24 Robot Scan Range 18 Terrain Scan Range 24 Terrain Scan Density 1010 ECM Strength 3 Jamming Range 14 Cloak Strength 4 Additional Mass Support 20 Armor Coverage 625 Resistance: KI 30 Resistance: TH 15 Resistance: EM 75 Core Shielding 30 Weapon Shielding 90 Melee Speed Boost 30 Evasion (%) 57 Targeting Accuracy 20 Target Analysis 10 Recoil Reduction 4 Energy Filtering 50 Particle Charging 25 Kinecelleration 40 Offensive Hacking 48 Defensive Hacking 55 Item Schematics ----------------- Exp. Hacking Suite | -3/Research | Scanalyzed Exp. System Shield | -3/Research | Scanalyzed Cmb. Linear Gravjet | -3/Research | Scanalyzed Vortex Chain Reactor | -3/Research | Scanalyzed Lgt. Quantum Reactor | -3/Research | Hacked Adv. EM Disruption Field | -3/Research | Hacked Antigrav Array | -3/Research | Hacked Biometal Leg | -3/Research | Hacked Quantum Shading Machine | -3/Research | Scanalyzed Imp. System Shield | -3/Research | Scanalyzed Exp. Energy Well | -3/Research | Scanalyzed Adv. Cloaking Device | -3/Research | Scanalyzed System Purifier | -3/Research | Scanalyzed Lrn. Terrain Scanner | -3/Research | Scanalyzed Exp. Coolant Injector | -3/Research | Scanalyzed Quantum Rifle | -3/Research | Hacked Exp. EM Disruption Field | -3/Testing | Hacked Exp. Q-thruster | -3/Testing | Hacked Enh. Nova Cannon | -3/Testing | Hacked Enh. Quantum Rifle | -3/Testing | Hacked Exp. Thermal Generator | -3/Testing | Hacked Hdn. Centrium Leg | -3/Testing | Hacked Prc. Energy Filter | -3/Testing | Scanalyzed Exp. Focal Shield | -3/Testing | Scanalyzed Adv. Weapon Cycler | -3/Testing | Scanalyzed Adv. Heavy Siege Treads | -3/Testing | Hacked Lgt. Regenerative Plating | -3/Testing | Hacked Exp. Melee Analysis Suite | -2/Quarantine | Archive Robot Schematics ------------------ L-61 Swordsman | -3/Testing | Hacked A-02 Transporter | -2/Quarantine | Archive S-43 Plague | -2/Quarantine | Archive Fabricated ------------ Imp. Hacking Suite | x1 | -7/Factory Imp. System Shield | x1 | -6/Factory Adv. Hacking Suite | x1 | -5/Factory | Preloaded Lrn. Sensor Array | x1 | -5/Factory Adv. Hacking Suite | x1 | -5/Factory Exp. Hacking Suite | x1 | -4/Factory Exp. Terrain Scan Processor | x1 | -4/Factory Exp. System Shield | x1 | -4/Factory Enh. Nova Cannon | x1 | -4/Armory | Preloaded G-67 Veteran | x3 | -4/Armory | Preloaded P-80 Master | x2 | -4/Armory Vortex Chain Reactor | x1 | -2/Research Alien Tech Used ----------------- Core Reset Matrix Integrated Reactor Dimensional Node Initializer Sigix Broadsword High-powered Transdimensional Reconstructor Transdimensional Reconstructor Core Stripper Phase Redirector Integrated Mediator Core Regenerator Spacefold Activator Core Membrane Integrated Dissipator Subatomic Replicator LRC Storage Sigix Terminator Integrity Redistributor Achievements -------------- Everyone Must Die Challenges ------------ None Game ------ Seed SwarmFrostSubcomponent Manual? 0 Play Time 08:57:52 Cumulative 420.0 hours Start 2022.06.21 @ 16:49:45 End 2022.06.22 @ 02:20:53 Sessions 3 Manual Loads 0 Difficulty Rogue Special Mode None Game No. 108 Rogue 108 Adventurer 0 Explorer 0 Win Type - Total 20 Types 15/1/3/0/0/0/0/1/0 Lore% 91 Gallery% 92 Achievement% 78 Wizard Run 0 Options --------- ASCII 0 Keyboard 0 Movement Numpad Keybinds 0 Fullscreen 1 Font 14/SmallcapsGlow Map View 84x54 Tactical HUD 1 Map Filters NONE Filters NONE Steam 1 RUN: 0c720815-0351-4430-aebc-dc5e34d41c99